Workbook

Sheet CONTENT INDEX
B6: ESG Indicators Dataset: Table of Contents
B9: ENVIRONMENTAL
B11: CLIMATE STRATEGY
C12: Operational carbon footprint
B13: DECARBONISATION AND TRANSITION PLAN
C14: CaixaBank Group financed emissions
B15: ENVIRONMENTAL RATIOS
C16: Energy financing ratio
C17: Other environmental ratios
B19: SOCIAL
B21: OWN WORKFORCE
B22: CUSTOMERS
B23: SOCIETY
B25: GOVERNANCE
B27: CORPORATE GOVERNANCE
B28: BUSINESS CONDUCT
C29: Whistleblowing mechanism
C30: Tax transparency
B31: SUPPLIERS
B32: ESG METRICS IN REMUNERATION SCHEMES
B33: ESG RISK MANAGEMENT POLICY
C34: Implementation of the policy
C35: Onboarding ESG
C36: Equator principles
B37: CYBERSECURITY
B38: TRANSPARENCY IN THE INFORMATION PROVIDED TO CUSTOMERS ABOUT PRODUCTS AND SERVICES
B40: SUSTAINABLE FINANCE
B42: SUSTAINABLE FINANCE
C43: Sustainable financing
C44: Other breakdowns of sustainable financing mobilisation
C45: Sustainable intermediation
C46: Responsible investment
B48: CROSS-CUTTING
B50: List of ESG Policies
B51: ESG analysts and ratings
B52: Engagement with Stakeholders
B53: ESG Bonds
B54: Memberships and alliances
B55: Double Materiality Matrix
B56: Sustainability Plan 2025 - 2027
B57: Sustainable Development Goals (SDGs)
B58: Double Materiality Assessment and SDGs
B60: UNEP FI - PRB
B62: Responsible Banking Progress Statement
B66: Sources of information
B68: References | D68: URL
B69: Annual Report | D69: Consolidated-Annual-Financial-Report.pdf
B70: Consolidated Management Report | D70: ENG-Informe-de-Gestion-2025.pdf
B71: Consolidated Interim Management Report January–June 2025 | D71: https://www.caixabank.com/deployedfiles/caixabank_com/Estaticos/PDFs/Accionistasinversores/Informacion_economico_financiera/IGC_30062025_ING.pdf
B72: People Report | D72: 2025_People_Annual_Report.pdf
B73: Sustainability Plan 2025 - 2027 | D73: CaixaBank_25-27_Sustainability_Plan.pdf
B74: GHG Emissions Inventory Of The CaixaBank Group For 2025 | D74: https://www.caixabank.com/deployedfiles/caixabank_com/Estaticos/PDFs/Sostenibilidad/eng_Informe_Emisiones_Grupo_CaixaBank_2025_formato_CB.pdf
B75: Microbank Annual Report | D75: https://www.microbank.com/deployedfiles/mbk/Estaticos/PDF/informes-anuales/en/annual-report.pdf
B76: Social Action Report | D76: https://www.caixabank.com/deployedfiles/caixabank_com/Estaticos/PDFs/Sobrenosotros/Memoria-Accion-Social-2025-ENG.pdf
B77: Responsible investment: Proprietary products | D77: https://www.caixabank.com/deployedfiles/caixabank_com/Estaticos/PDFs/Sostenibilidad/Sustainable_investing_propietary_products_EN.pdf
B78: Responsible investment: Third-party products | D78: https://www.caixabank.com/deployedfiles/caixabank_com/Estaticos/PDFs/Sostenibilidad/Sustainable_investing_third_party_products_EN.pdf
B79: Executive summary Projects Assessed In 2025 According To The Equator Principles | D79: https://www.caixabank.com/deployedfiles/caixabank_com/Estaticos/PDFs/Sostenibilidad/Principios_Ecuador_proyectos_2025_ENG.pdf
B80: Annual Corporate Governance Report | D80: https://www.caixabank.com/deployedfiles/caixabank_com/Estaticos/PDFs/Accionistasinversores/Gobierno_Corporativo/IAGC_2025-vWEBenglish.pdf
B81: Annual Report on the Remuneration of Directors | D81: https://www.caixabank.com/deployedfiles/caixabank_com/Estaticos/PDFs/Accionistasinversores/Gobierno_Corporativo/IARC-2025vWEBenglish.pdf
B82: Universal registration document CaixaBank S.A. | D82: https://www.caixabank.com/deployedfiles/caixabank_com/Estaticos/PDFs/Accionistasinversores/DRU_2026.pdf
B83: Corporate Website | D83: https://www.caixabank.com/en/home_en.html
B84: Corporate website of CaixaBank Group: Environmental Management | D84: https://www.caixabank.com/en/sustainability/sustainable-transition/environmental-management.html
B87: Purpose of the ESG Indicators Summary
B89: The purpose of this ESG Indicators Summary is to provide analysts, investors and other stakeholders with access to the non-financial information primarily included in the Non-Financial Information Statement of the CaixaBank Group’s Consolidated Management Report, as well as in other public reports and on the Group’s corporate website, as referred to in the previous section, by compiling it into a single document.
B96: Legal notice
B98: The information contained in this ESG Indicators Summary is provided for information purposes only and has not been prepared for the purpose of complying with current regulations, nor does it constitute financial, legal or any other form of advice. CaixaBank accepts no liability whatsoever for any use that recipients may make of the information contained herein. Whilst reasonable measures have been taken to ensure that the information contained in this ESG Indicators Summary is accurate and not misleading, CaixaBank makes no representation or warranty, express or implied, that it is accurate, complete or up to date, and it should not be relied upon as if it were. CaixaBank shall not be liable for any errors, omissions or inaccuracies in the information contained in this ESG Indicators Summary.
B107: If you have any queries or comments, please contact servicio.atencion.indices.y.analistas@caixabank.com
I109: Back to the top

Sheet ENVIRONMENTAL
B1: Total indicators
B2: =B6+SOCIAL!B6+GOVERNANCE!B5+'SUSTAINABLE FINANCE'!B6+'CROSS-CUTTING'!B3+'UNEP FI - PRB'!B6 -> 1000
B3: =B7+SOCIAL!B7+GOVERNANCE!B6+'SUSTAINABLE FINANCE'!B7+'CROSS-CUTTING'!B4+'UNEP FI - PRB'!B7 -> 801
B4: =B3/B2 -> 0.801
B5: Summary of indicators A
B6: 287
B7: 287
C8: CLIMATE STRATEGY
C10: Operational carbon footprint | D10: Source: CaixaBank Group Consolidated Management Report / GHG Emissions inventory of the CaixaBank Group for 2025/ CaixaBank corporate website: Environmental management
B13: Workiva | C13: CaixaBank S.A. Operational Carbon Footprint (TCO2 EQ) | E13: 2022 | F13: 2023 | G13: 2024 | H13: 2025 | I13: 2025 target
C14: Scope 1 Gross GHG emissions | E14: 5626.12 | F14: 4688.61 | G14: 3192.9 | H14: 3782.88 | I14: 2905.53
B15: GHG EMISSIONS INVENTORY OF THE CAIXABANK GROUP FOR 2025 | D15: Combustion from stationary sources | E15: 1117.59 | F15: 916.26 | G15: 823.2 | H15: 850.64 | I15: -
D16: Combustion from mobile sources | E16: 960.41 | F16: 395.9 | G16: 210.8 | H16: 54.09 | I16: -
D17: Refrigerant gas leakage | E17: 3548.12 | F17: 3376.72 | G17: 2159 | H17: 2878.15 | I17: -
C18: Scope 2 Gross GHG emissions (market based) | E18: 0 | F18: 0 | G18: 0 | H18: 0 | I18: 0
C19: Scope 2 Gross GHG emissions (location based) | E19: 31994.66 | F19: 21082.1 | G19: 16392.9 | H19: 16843.56 | I19: 15573.25
C20: Scope 3 Total Gross Indirect GHG emissions | E20: 207591.5 | F20: 199158 | G20: 239092.48 | H20: 281373.78 | I20: -
D21: Category 1. Purchase of goods and services | E21: 122152.8 | F21: 114887.5 | G21: 122756.03 | H21: 168460.55 | I21: -
D22: Category 2. Capital goods | E22: 75044.1 | F22: 71267.5 | G22: 52424.44 | H22: 48029.58 | I22: -
D23: Category 3. Fuel and energy-related activities | E23: 4584.7 | F23: 3996.6 | G23: 3177.78 | H23: 2454.5 | I23: -
D24: Category 6. Business travel | E24: 5809.9 | F24: 9006.4 | G24: 12137.08 | H24: 11770.02 | I24: -
D25: Category 7. Employee commuting | E25: - | F25: - | G25: 48597.15 | H25: 50659.13 | I25: -
B27: Workiva | C27: CaixaBank Group operational carbon footprint (TCO2 EQ) | E27: 2022 | F27: 2023 | G27: 2024 | H27: 2025 | I27: 2025 target
B28: Consolidated Management Report 2025 | C28: Scope 1 Gross GHG emissions | E28: 9576.3 | F28: 8423.3 | G28: 7092.97 | H28: 7646.23 | I28: 7616.24
B29: (p. 314) | D29: Combustion from stationary sources | E29: 1308.3 | F29: 1126.1 | G29: 962.06 | H29: 1011.31 | I29: -
D30: Combustion from mobile sources | E30: 4161.5 | F30: 3858.3 | G30: 3619.06 | H30: 3363.1 | I30: -
D31: Refrigerant gas leakage | E31: 4106.54 | F31: 3439 | G31: 2511.85 | H31: 3271.82 | I31: -
C32: Scope 2 Gross GHG emissions (market based) | E32: 0 | F32: 0 | G32: 0 | H32: 0 | I32: 0
C33: Scope 2 Gross GHG emissions (location based) | E33: 42670.7 | F33: 29384 | G33: 23046.75 | H33: 23101 | I33: 18652
C34: Scope 3 Total Gross Indirect GHG emissions | E34: 352113.6 | F34: 336817.4 | G34: 383815.07 | H34: 428002.46 | I34: -
D35: Category 1. Purchase of goods and services | E35: 237891.3 | F35: 229492.6 | G35: 236247.88 | H35: 278800.91 | I35: -
D36: Category 2. Capital goods | E36: 100633.7 | F36: 90015.7 | G36: 72699.59 | H36: 73286.95 | I36: -
D37: Category 3. Fuel and energy-related activities | E37: 6715.7 | F37: 6142.6 | G37: 5117.53 | H37: 4135.99 | I37: -
D38: Category 6. Business travel | E38: 6872.9 | F38: 11166.5 | G38: 15055.2 | H38: 14418.43 | I38: -
D39: Category 7. Employee commuting | E39: - | F39: - | G39: 54694.88 | H39: 57360.18 | I39: -
B42: Workiva | C42: CaixaBank Group’s operational carbon footprint targets | F42: 2025 | H42: 2026 | J42: 2027 | L42: 2030 | N42: Total base year emissions covered (%)
B43: Consolidated Management Report 2025 | D43: Targets (All reduction targets are based on 2024 data) | F43: CaixaBank S.A. | G43: CaixaBank Group | H43: CaixaBank S.A. | I43: CaixaBank Group | J43: CaixaBank S.A. | K43: CaixaBank Group | L43: CaixaBank S.A. | M43: CaixaBank Group | N43: CaixaBank S.A. | O43: CaixaBank Group
B44: (p. 298) | C44: Carbon footprint mitigation strategy | D44: Reduction of Scope 1 Emissions (% tCO2e) | F44: -9 | G44: -4 | H44: -12 | I44: -6 | J44: -16 | K44: -7 | L44: -22 | M44: -10 | N44: 100 | O44: 100
D45: Scope 2 Emissions (Market Method) (% tCO2e) | F45: 0 | G45: 0 | H45: 0 | I45: 0 | J45: 0 | K45: 0 | L45: 0 | M45: 0 | N45: 100 | O45: 100
D46: Reduction of Scope 2 Emissions (Location Method) (% tCO2e) | F46: -5 | G46: -4 | H46: -8 | I46: -6 | J46: -10 | K46: -7.5 | L46: -15 | M46: -11 | N46: 100 | O46: 100
D47: Reduction of Scope 1+2 emissions (Market Method) (% tCO2e) | F47: -9 | G47: -4 | H47: -12 | I47: -6 | J47: -16 | K47: -7 | L47: -22 | M47: -10 | N47: 100 | O47: 100
D48: Reduction of Scope 1+2 Emissions (Location Method) (% tCO2e) | F48: -6 | G48: -4 | H48: -9 | I48: -6 | J48: -11 | K48: -7.5 | L48: -16 | M48: -11 | N48: 100 | O48: 100
D49: Carbon footprint offsetting – Scopes 1, 2 and 3.6 (corporate travel) | F49: 100 | G49: 100 | H49: 100 | I49: 100 | J49: 100 | K49: 100 | L49: 100 | M49: 100
D50: Renewable energy consumption ( %kWh) | F50: 100 | G50: 100 | H50: 100 | I50: 100 | J50: 100 | K50: 100 | L50: 100 | M50: 100
C51: Fostering efficiency | D51: Savings in electricity consumption (% kWh) | F51: -5 | G51: -4 | H51: -8 | I51: -6 | J51: -10 | K51: -7.5 | L51: -15 | M51: -11
B54: Workiva | C54: Carbon credits cancelled in reporting year | E54: 2023 | F54: 2024 | G54: 2025
B55: Consolidated Management Report 2025 | C55: Total (tCO2e) | E55: 19590 | F55: 19736 | G55: 22065
B56: (p. 301) | C56: Proportion of removal projects (%) | E56: 75 | F56: 100 | G56: 100
C57: Proportion of reduction projects (%) | E57: 25 | F57: 0 | G57: 0
C58: Carbon credits recognised by MITECO (%) | E58: 50 | F58: 50 | G58: 50
C59: Carbon credits recognised by VCS (%) | E59: 50 | F59: 40 | G59: 50
C60: Carbon credits recognised by CAR (%) | E60: 0 | F60: 10 | G60: 0
C61: Proportion of projects within the EU (%) | E61: 50 | F61: 50 | G61: 50
C62: Carbon credits that can be considered a corresponding adjustment under Article 6 of the Paris Agreement (%) | E62: - | F62: - | G62: -
B64: Workiva | C64: Internal carbon pricing (CaixaBank S.A.) | G64: 2025
C65: Objectives to implement a carbon price | F65: Reducing upstream value chain emissions
B66: Consolidated Management Report 2025 | C66: GHG Scopes covered | F66: Scope 3. Category 3.6. Business travel
B67: (p. 304) | C67: Type of internal carbon price | F67: Shadow price
B68: Pendiente decisión Álvaro Colino, sino lo escondemos | C68: Precio (tCO2e)
B69: Pendiente decisión Álvaro Colino | C69: Aplicación
B72: Workiva | C72: Operational efficiency Energy | E72: 2023 | G72: 2024 | I72: 2025 | K72: Target (%)
B73: Consolidated Management Report 2025 | E73: CaixaBank S.A. | F73: CaixaBank Group | G73: CaixaBank S.A. | H73: CaixaBank Group | I73: CaixaBank S.A. | J73: CaixaBank Group | K73: CaixaBank S.A. | L73: CaixaBank Group
B74: (p. 305) | C74: Energy (MWh) | D74: Total consumption of renewable energy | E74: 172932 | F74: 233472 | G74: 160739 | H74: 218049 | I74: 154680 | J74: 211744 | K74: 100 | L74: 100
D75: Total consumption of non-renewable energy | E75: 6169 | F75: 20253 | G75: 5030 | H75: 19460 | I75: 4489 | J75: 18605 | K75: - | L75: -
D76: Electricity consumption | E76: 172804 | F76: 233472 | G76: 160714 | H76: 218049 | I76: 154680 | J76: 211744 | K76: - | L76: -
D77: Electricity consumption per employee | E77: 4.79 | F77: 5.25 | G77: 4.4 | H77: 4.83 | I77: 4.15 | J77: 4.55 | K77: - | L77: -
B80: Workiva | C80: Operational efficiency Others (CaixaBank S.A.) | E80: 2023 | F80: 2024 | G80: 2025 | H80: Target (%)
B81: Consolidated Management Report 2025 | C81: Water (m3) | D81: Water consumption | E81: 421769 | F81: 358334 | G81: 347514
B82: (p. 302-306) | D82: Water consumption per employee | E82: 11.69 | F82: 9.8 | G82: 9.3
C83: Paper (T) | D83: Paper consumption | E83: 902 | F83: 838 | G83: 778 | H83: -6
D84: Paper consumption per employee | E84: 0.02 | F84: 0.02 | G84: 0.02
C85: Waste (T) | D85: Toner cartridges | E85: 35 | F85: 28 | G85: 26
D86: IT support | E86: 855 | F86: 414 | G86: 276
C87: Certifications | D87: ISO 14001 certified buildings (number of buildings) | E87: 5 | F87: 5 | G87: 6
D88: ISO 50001 certified buildings (number of buildings) | E88: 1 | F88: 2 | G88: 2
D89: EMAS registered buildings (number of buildings) | E89: 1 | F89: 1 | G89: 1
D90: Workforce operating in certified buildings (%) | E90: 30 | F90: 30 | G90: 30
C93: DECARBONISATION AND TRANSITION PLAN
B96: Workiva | C96: CaixaBank Group financed emissions | D96: Source: CaixaBank Group Consolidated Management Report
B98: Consolidated Management Report 2025 | C98: Outlook by type of asset | D98: Exposure | H98: Absolute emissions | L98: Economic intensity
B99: (p. 309-310) | D99: Total exposure in perimeter (M€) | F99: Calculated exposure (%) | H99: S1+2 (ktCO2e) | J99: S3 (ktCO2e) | L99: S1+2 emissions intensity (tCO2e/MM€)
D100: 2024 | E100: 2025 | F100: 2024 | G100: 2025 | H100: 2024 | I100: 2025 | J100: 2024 | K100: 2025 | L100: 2024 | M100: 2025
C101: CRE | D101: 6054 | E101: 5439 | F101: 88 | G101: 89.4 | H101: 72 | I101: 60 | J101: - | K101: - | L101: 13 | M101: 12
C102: Mortgages | D102: 125668 | E102: 133113 | F102: 99.9 | G102: 99.9 | H102: 2825 | I102: 2654 | J102: - | K102: - | L102: 23 | M102: 20
C103: Business funding | D103: 163123 | E103: 175462 | F103: 74.2 | G103: 71 | H103: 19553 | I103: 16584 | J103: 53528 | K103: 60282 | L103: 162 | M103: 133
C104: Auto loans | D104: 9417 | E104: 12455 | F104: 95.2 | G104: 94.8 | H104: 1891 | I104: 2271 | J104: - | K104: - | L104: 211 | M104: 192
C105: Equity securities | D105: 8 | E105: 8 | F105: 76.7 | G105: 95.9 | H105: 0.04 | I105: 0.06 | J105: 0.19 | K105: 0.23 | L105: 6 | M105: 7
C106: Corporate fixed income | D106: 16854 | E106: 16138 | F106: 99 | G106: 99.2 | H106: 108 | I106: 28 | J106: 266 | K106: 173 | L106: 6 | M106: 2
C107: Total | D107: 321123 | E107: 342616 | F107: 86.4 | G107: 84.7 | H107: 24448 | I107: 21596 | J107: 53795 | K107: 60455 | L107: 88 | M107: 74
B110: Consolidated Management Report 2025 | C110: Vision by sector (corporate finance) | D110: Exposure | H110: Absolute emissions | L110: Economic intensity
B111: (p. 309-310) | D111: Total exposure in perimeter (M€) | F111: Calculated exposure (%) | H111: S1+2 (ktCO2e) | J111: S3 (ktCO2e) | L111: S1+2 emissions intensity (tCO2e/MM€)
D112: 2024 | E112: 2025 | F112: 2024 | G112: 2025 | H112: 2024 | I112: 2025 | J112: 2024 | K112: 2025 | L112: 2024 | M112: 2025
C113: Fossil fuel combustion | D113: 5241 | E113: 5826 | F113: 75.2 | G113: 82.9 | H113: 3539 | I113: 1346 | J113: 11378 | K113: 11316 | L113: 898 | M113: 279
C114: Power generation | D114: 15481 | E114: 16257 | F114: 93.7 | G114: 92.8 | H114: 1598 | I114: 1262 | J114: 6103 | K114: 5519 | L114: 110 | M114: 84
C115: Transport | D115: 26690 | E115: 27658 | F115: 73.8 | G115: 70.3 | H115: 3083 | I115: 4589 | J115: 10905 | K115: 17087 | L115: 156 | M115: 236
C116: Property | D116: 19737 | E116: 21280 | F116: 74.5 | G116: 74.6 | H116: 727 | I116: 756 | J116: 2126 | K116: 2225 | L116: 49 | M116: 48
C117: Cement | D117: 315 | E117: 346 | F117: 82.9 | G117: 85.8 | H117: 376 | I117: 211 | J117: 87 | K117: 196 | L117: 1443 | M117: 710
C118: Iron and Steel | D118: 1985 | E118: 2185 | F118: 88.4 | G118: 84 | H118: 492 | I118: 429 | J118: 881 | K118: 910 | L118: 281 | M118: 234
C119: Agriculture (includes livestock farming) | D119: 5372 | E119: 5018 | F119: 81.9 | G119: 82.8 | H119: 2421 | I119: 1927 | J119: 2260 | K119: 1898 | L119: 550 | M119: 464
C120: Aluminium | D120: 673 | E120: 857 | F120: 84.4 | G120: 92.9 | H120: 111 | I120: 185 | J120: 261 | K120: 330 | L120: 195 | M120: 233
C121: Coal | D121: 2 | E121: 0.41 | F121: 98.7 | G121: 12.6 | H121: 56 | I121: 22 | J121: 2 | K121: 0.03 | L121: 27266 | M121: 432060
C122: Other sectors | D122: 87627 | E122: 96035 | F122: 69.9 | G122: 64.9 | H122: 7151 | I122: 5858 | J122: 19524 | K122: 20800 | L122: 117 | M122: 94
C123: Total | D123: 163123 | E123: 175462 | H123: 19553 | I123: 16584 | J123: 53528 | K123: 60282
B126: Consolidated Management Report 2025 | C126: Geographical area vision | D126: Exposure | H126: Absolute emissions | L126: Economic intensity
B127: (p. 309-310) | D127: Total exposure in perimeter (M€) | F127: Calculated exposure (%) | H127: S1+2 (ktCO2e) | J127: S3 (ktCO2e) | L127: S1+2 emissions intensity (tCO2e/MM€)
D128: 2024 | E128: 2025 | F128: 2024 | G128: 2025 | H128: 2024 | I128: 2025 | J128: 2024 | K128: 2025 | L128: 2024 | M128: 2025
C129: Spain and Portugal | D129: 263581 | E129: 280124 | F129: 94.2 | G129: 92.8 | H129: 20168 | I129: 18649 | J129: 36595 | K129: 42308 | L129: 81 | M129: 72
C130: Europe | D130: 36648 | E130: 39668 | F130: 62.6 | G130: 60.5 | H130: 2028 | I130: 1730 | J130: 10730 | K130: 13927 | L130: 88 | M130: 72
C131: Rest of the world | D131: 20895 | E131: 22824 | F131: 30.2 | G131: 28.2 | H131: 2252 | I131: 1218 | J131: 6470 | K131: 4220 | L131: 355 | M131: 189
C132: Total | D132: 321123 | E132: 342616 | H132: 24448 | I132: 21596 | J132: 53795 | K132: 60455
B135: Consolidated Management Report 2025 | D135: Exposure | H135: Absolute emissions | L135: Economic intensity
B136: (p. 309-310) | C136: Sovereign debt | D136: Total exposure in perimeter (M€) | F136: Calculated exposure (%) | H136: S1 emissions (with LULUCF) (ktCO2e) | J136: S1 emissions (without LULUCF) (ktCO2e) | L136: S1 emissions intensity (with LULUCF) (tCO2e/MM€) | N136: S1 emissions intensity (without LULUCF) (tCO2e/MM€)
D137: 2024 | E137: 2025 | F137: 2024 | G137: 2025 | H137: 2024 | I137: 2025 | J137: 2024 | K137: 2025 | L137: 2024 | M137: 2025 | N137: 2024 | O137: 2025
C138: Sovereign debt | D138: 50082 | E138: 62208 | F138: 100 | G138: 100 | H138: 7174 | I138: 10096 | J138: 8195 | K138: 11391 | L138: 143 | M138: 162 | N138: 164 | O138: 183
B141: Workiva | C141: Decarbonisation targets for the banking business
B142: Consolidated Management Report 2025 | C142: Sector | D142: Scope of the emissions | E142: Metrics | F142: Scenario | G142: Base year | H142: Base year metrics | I142: Reduction target (2030) | J142: Target metric (2030)
B143: (p. 283) | C143: Electric | D143: 1 | E143: Physical intensity | F143: IEA Net Zero 2050 | G143: 2020 | H143: 136 kg CO2e/MWh | I143: -0.3 | J143: 95 kg CO2e/MWh
C144: Oil and Gas | D144: 1,2,3 | E144: Calculation of financed emissions | F144: IEA Net Zero 2050 | G144: 2020 | H144: 9.08 Mt CO2e | I144: -0.23 | J144: 6.99 Mt CO2e
C145: Automotive | D145: 3 | E145: Physical intensity | F145: IEA Net Zero 2050 | G145: 2022 | H145: 154 g CO2 /vkm | I145: -0.33 | J145: 103 g CO2/vkm
C146: Iron and Steel | D146: 1+2 | E146: Physical intensity | F146: IEA Net Zero 2050 | G146: 2022 | H146: 1,230 kg CO2e/ t steel | I146: -(10-20)% | J146: 1,107-984 kg CO2e/ t steel
C147: Coal-Total | D147: N/A | E147: Total exposure | F147: - | G147: 2022 | H147: €2,845m (€213m without mitigating factors) | I147: -1 | J147: €0m
C148: Commercial real estate | D148: 1+2 | E148: Physical intensity | F148: CRREM 1.5ºC CRE Iberian Peninsula | G148: 2022 | H148: 20.5 kg CO2e/m2 | I148: -0.41 | J148: 12.1 kgCO2e/m2
C149: Residential real estate | D149: 1+2 | E149: Physical intensity | F149: CRREM 1.5ºC RRE Spain + Portugal | G149: 2022 | H149: 23.57 kg CO2e/m2 | I149: -0.19 | J149: 19.03 kgCO2e/m2
C150: Maritime | D150: 1 | E150: Alignment % | F150: IMO 2018 | G150: 2022 | H150: AD%=11.9% | I150: -11.9 p.p. | J150: AD%=0%
C151: Aviation | D151: 1 | E151: Physical intensity | F151: MPPU 1.5º | G151: 2022 | H151: 102 gCO2e/ RPK | I151: -0.3 | J151: 71 gCO2e/RPK
C152: Agriculture and livestock | D152: Direct emissions (“on farm”) + feed | E152: Physical intensity | F152: SBTi FLAG Commodity Pathways 1.5ºC | G152: 2022 | H152: Qualitative objective focused on improving knowledge and the profiling of individual customers and the sector in general.
C157: ENVIRONMENTAL RATIOS
C159: Energy financing ratio | D159: Source: pending
B161: we hide before publishing | C161: Energy financing ratio | D161: 2025
B162: Pending reference | C162: Energy Supply Banking Ratio
B166: Workiva | C166: Other environmental ratios | D166: Source: CaixaBank Group Consolidated Management Report
B167: Consolidated Management Report 2025 | C167: Mortgage portfolio with Energy Performance Ratio EPC label | E167: 2024 | F167: 2025
B168: (p. 266, 276) | C168: Mortgage portfolio with Energy Performance Ratio EPC label A-C (%) | E168: =100*SUM(E169:E171)/(SUM(E169:E171)+SUM(E173:E176)) -> 7.501259809 | F168: =100*SUM(F169:F171)/(SUM(F169:F171)+SUM(F173:F176)) -> 8.29009392
B169: Fitch | D169: Mortgage portfolio with Energy Performance Ratio EPC label A (M€) | E169: 1094 | F169: 1411
D170: Mortgage portfolio with Energy Performance Ratio EPC label B (M€) | E170: 1449 | F170: 1668
D171: Mortgage portfolio with Energy Performance Ratio EPC label C (M€) | E171: 2667 | F171: 3903
C172: Mortgage portfolio with Energy Performance Ratio EPC label D-G (%) | E172: =100*SUM(E173:E176)/(SUM(E169:E171)+SUM(E173:E176)) -> 92.49874019 | F172: =100*SUM(F173:F176)/(SUM(F169:F171)+SUM(F173:F176)) -> 91.70990608
D173: Mortgage portfolio with Energy Performance Ratio EPC label D (M€) | E173: 10417 | F173: 13069
D174: Mortgage portfolio with Energy Performance Ratio EPC label E (M€) | E174: 36882 | F174: 44171
D175: Mortgage portfolio with Energy Performance Ratio EPC label F (M€) | E175: 7051 | F175: 8508
D176: Mortgage portfolio with Energy Performance Ratio EPC label G (M€) | E176: 9895 | F176: 11491
B177: ISS ESG Corporate Rating gap es social, no tiene que estar aquí ocultar | C177: Products with a social impact as a percentage of total products (%) | E177: - | F177: -
B178: ISS ESG Corporate Rating gap, hide | C178: Products with an environmental impact as a percentage of total products (%) | E178: - | F178: -
B179: Sustainalytics Gap, is not exclusively environmental; hide | C179: High-risk loans as a percentage of the total loan portfolio (%) | E179: - | F179: -
B181: Consolidated Management Report 2025 | C181: Green Taxonomy (GAR) (%) | E181: 2024 | F181: 2025
B182: p. 322 | C182: % aligned assets (CAPEX) | E182: 3.93 | F182: 4.34
C183: % aligned assets (Turnover) | E183: 3.05 | F183: 3.63
A186: Back to top

Sheet SOCIAL
B5: Summary of indicators S
B6: 283
B7: 157
C8: OWN WORKFORCE | D8: Source: CaixaBank Group Consolidated Management Report / People Report
C10: Workforce characteristics | E10: 2022 | F10: 2023 | G10: 2024 | H10: 2025
B11: Workiva part of Consolidated Management Report, People report none | C11: Total number of employees in the CaixaBank Group | E11: 44625 | F11: 44863 | G11: 46014 | H11: 47120
B12: Consolidated Management Report | C12: Breakdown of the workforce by occupational category (number of employees) | D12: Executives | E12: 5628 | F12: 5459 | G12: 5366 | H12: 5586
B13: (p. 342, 347, 359) | D13: Middle Managers | E13: 7996 | F13: 8219 | G13: 8484 | H13: 8948
D14: Other Employees | E14: 31001 | F14: 31185 | G14: 32164 | H14: 32586
B15: 2024 People Report | C15: Breakdown of the workforce by demographic structure (number of employees) | D15: Men | E15: 19413 | F15: 19585 | G15: 20210 | H15: 20946
B16: (p.175, 177, 204, 207) | D16: Women | E16: 25212 | F16: 25278 | G16: 25804 | H16: 26174
C17: Breakdown of the workforce by age (number of employees) | D17: <30 years | E17: 1190 | F17: 1279 | G17: 1797 | H17: 2316
D18: 30-39 years | E18: 5713 | F18: 5067 | G18: 4981 | H18: 5165
D19: 40-50 years | E19: 25818 | F19: 26966 | G19: 25057 | H19: 22764
D20: >50 years | E20: 11904 | F20: 11551 | G20: 14179 | H20: 16875
C21: Breakdown of the workforce by nationality (Mosaic of cultures) (number of employees) (CaixaBank S.A.) | D21: Total | E21: 906 | F21: 955 | G21: 1123 | H21: 1243
D22: Europe (except for Spain) | E22: 459 | F22: 467 | G22: 515 | H22: 574
D23: North America | E23: 26 | F23: 26 | G23: 29 | H23: 34
D24: Central America and the Caribbean | E24: 29 | F24: 34 | G24: 39 | H24: 45
D25: South America | E25: 253 | F25: 275 | G25: 365 | H25: 410
D26: Africa | E26: 81 | F26: 86 | G26: 97 | H26: 105
D27: Asia | E27: 58 | F27: 67 | G27: 78 | H27: 73
D28: Oceania | E28: - | F28: - | G28: - | H28: 2
C29: Breakdown of the workforce by functional structure (number of employees) | D29: Business support - Directors | E29: 105 | F29: 104 | G29: 105 | H29: 101
D30: Business support - Middle management | E30: 198 | F30: 193 | G30: 186 | H30: 148
D31: Business support - Other employees | E31: 1514 | F31: 1645 | G31: 1917 | H31: 2122
D32: Business activity - Directors | E32: 502 | F32: 492 | G32: 410 | H32: 590
D33: Business activity - Middle management | E33: 987 | F33: 1000 | G33: 919 | H33: 718
D34: Business activity - Other employees | E34: 5054 | F34: 5033 | G34: 5420 | H34: 5920
D35: Other companies - Directors | E35: 6 | F35: 6 | G35: 5 | H35: 4
D36: Other companies - Middle management | E36: 15 | F36: 12 | G36: 11 | H36: 3
D37: Other companies - Other employees | E37: 155 | F37: 153 | G37: 167 | H37: 25
C38: Breakdown of the workforce by contract type (number of employees) | D38: Full-time, permanent or open-ended contract | E38: 44315 | F38: 44670 | G38: 45727 | H38: 46800
D39: Part-time, permanent or open-ended contract | E39: 104 | F39: 115 | G39: 124 | H39: 145
D40: Fixed-term contract | E40: 206 | F40: 78 | G40: 163 | H40: 175
C41: Workforce departures and absences (number of employees) | D41: Total departures and absences | E41: -7326 | F41: -1643 | G41: -1650 | H41: -1845
D42: Retirement | E42: -112 | F42: -163 | G42: -139 | H42: -103
D43: Death | E43: -17 | F43: -22 | G43: -19 | H43: -21
D44: Dismissal | E44: -113 | F44: -153 | G44: -124 | H44: -121
D45: Voluntary redundancy | E45: -320 | F45: -280 | G45: -290 | H45: -318
D46: Contract termination | E46: -82 | F46: -78 | G46: -60 | H46: -41
D47: Not passed probationary period | E47: -14 | F47: -30 | G47: -104 | H47: -118
D48: Permanent disability | E48: -22 | F48: -25 | G48: -5 | H48: -5
D49: Other recurring departures | E49: -251 | F49: -25 | G49: -26 | H49: -170
D50: Voluntary redundancies | E50: -31 | F50: -47 | G50: -21 | H50: -4
D51: Total permanent departures | E51: -5539 | F51: -924 | G51: -788 | H51: -901
D52: Restructuring Plan | E52: -5319 | F52: -101
D53: Total absences (leave of absence or other) | E53: -842 | F53: -719 | G53: -862 | H53: -944
C54: Workforce absences and leave by type of leave and gender (CaixaBank SA) (%) | D54: Overall turnover (total departures / average workforce) – Men | E54: 18.6 | F54: 1.4 | G54: 1.1 | H54: 1.2
D55: Overall turnover (total departures / average workforce) – Women | E55: 12.5 | F55: 0.9 | G55: 0.6 | H55: 0.6
D56: Turnover (departures excluding restructuring plans / average workforce) – Men | E56: 0.7 | F56: 1 | G56: 1.1 | H56: 1.2
D57: Turnover (departures excluding restructuring plans / average workforce) – Women | E57: 0.5 | F57: 0.7 | G57: 0.6 | H57: 0.6
D58: Voluntary turnover (voluntary departures / average workforce) – Men | E58: 0.4 | F58: 0.5 | G58: 0.5 | H58: 0.4
D59: Voluntary turnover (voluntary departures / average workforce) – Women | E59: 0.2 | F59: 0.2 | G59: 0.2 | H59: 0.2
C60: Additions and readmissions (New hires and reinstatements) | E60: 2189 | F60: 1881 | G60: 2801 | H60: 2951
C61: New hires (number of employees) | E61: 949 | F61: 1295 | G61: 2116 | H61: 2167
C62: New hires filled by internal candidates (%) | E62: 98.8 | F62: 96.8 | G62: 95.8 | H62: 94.3
C63: Workforce turnover rate (CaixaBank SA) (%) | E63: 15.1 | F63: 1.1 | G63: 0.8 | H63: 0.8
C64: Voluntary workforce turnover rate (CaixaBank SA) (%) | E64: 0.2 | F64: 0.3 | G64: 0.3 | H64: 0.3
C66: Organisational structure (number of employees) (CaixaBank S.A.) | E66: 2022 | F66: 2023 | G66: 2024 | H66: 2025
B67: 2025 People Report | C67: Total office workforce | E67: 30144 | F67: 29625 | G67: 29509 | H67: 29221
B68: (p.178) | C68: Breakdown of workforce by regional network | E68: 32478 | F68: 32412 | G68: 32745 | H68: 32950
C69: Breakdown of workforce by headquarters | E69: 3611 | F69: 3813 | G69: 4129 | H69: 4539
B71: Workiva | C71: Training | E71: 2022 | F71: 2023 | G71: 2024 | H71: 2025
B72: 2025 People Report | C72: Total training hours (number of hours) | E72: 2775872 | F72: 2567949 | G72: 2992780 | H72: 2810229
B73: (p.208) | C73: Average training hours per person (number of hours) | E73: 76 | F73: 71 | G73: 65.9 | H73: 60.3
C74: Virtual training (%) | E74: 98 | F74: 98 | G74: 92 | H74: 91.6
B75: Consolidated Management Report | C75: Face-to-face training (%) | E75: 2 | F75: 2 | G75: 8 | H75: 8.4
B76: (p. 355, 358-359, 407,470) | C76: Total investment in training (€) | E76: 15100000 | F76: 10939896 | G76: 15400000 | H76: 18100000
C77: Total investment per person in training (€) | E77: 335 | F77: 338 | G77: 339 | H77: 388
C78: Breakdown of training hours by occupational category (number of hours) | D78: Executives | E78: 415750 | F78: 49961 | G78: 234762 | H78: 317744
D79: Middle Managers | E79: 557487 | F79: 528919 | G79: 308947 | H79: 514614
D80: Other Employees | E80: 2204965 | F80: 2076471 | G80: 2449071 | H80: 1977871
C81: Breakdown of training hours by age and gender (number of hours) | D81: Men <30 years | E81: 48253 | F81: 54147 | G81: 127378 | H81: 155015
D82: Women <30 years | E82: 58386 | F82: 59985 | G82: 122121 | H82: 131439
D83: Men 30-39 years | E83: 189612 | F83: 122927 | G83: 180788 | H83: 171021
D84: Women 30-39 years | E84: 247673 | F84: 154973 | G84: 194560 | H84: 173632
D85: Men 40-49 years | E85: 769611 | F85: 556406 | G85: 559273 | H85: 515385
D86: Women 40-49 years | E86: 1111788 | F86: 862930 | G86: 835257 | H86: 789157
D87: Men >49 years | E87: 358433 | F87: 348066 | G87: 455398 | H87: 398430
D88: Women >49 years | E88: 394447 | F88: 408515 | G88: 518005 | H88: 476150
C89: CaixaBank employees certified under MiFID II (number of employees) | E89: 28971 | F89: 29528 | G89: 31990 | H89: 32825
C90: CaixaBank employees certified under the Mortgage Credit Act (number of employees) | E90: 28792 | F90: 29189 | G90: 31813 | H90: 32840
C91: Employees certified under the Insurance Distribution Directive (IDD) (number of employees) | E91: 30440 | F91: 30510 | G91: 33146 | H91: 33636
C92: Employees with a training-linked bonus (number of employees) | E92: 43318 | F92: 41433 | G92: 42295 | H92: 44990
B95: Workiva part of Consolidated Management Report, People report none | C95: Commitment (Satisfaction) (%) (CaixaBank S.A.) | E95: 2022 | F95: 2023 | G95: 2024 | H95: 2025
B96: 2025 People Report | C96: Results of surveys on employee engagement and satisfaction, culture and leadership | D96: Overall satisfaction | E96: 67 | F96: 64 | G96: 69 | H96: 73
B97: (p.197) | D97: Employees who responded to the satisfaction survey | E97: 75 | F97: 56 | G97: 83 | H97: 57
D98: Professional development | E98: 69 | F98: 61 | G98: 67 | H98: 68
B99: Consolidated Management Report | D99: Level of empowerment | E99: 59 | F99: 60 | G99: 65 | H99: 69
B100: (p. 377) | D100: Talent retention | E100: 73.5 | F100: 82.3 | G100: 84.1 | H100: 87.3
B102: Workiva | C102: Return on investment in human capital (€) | E102: 2022 | F102: 2023 | G102: 2024 | H102: 2025
B103: Consolidated Management Report | C103: Total revenue | E103: 17676000000 | F103: 26565000000 | G103: 29120000000 | H103: 26931000000
B104: (p. 508, 569, 579) | C104: Total operating expenses | E104: 5575000000 | F104: 5822000000 | G104: 6108000000 | H104: 6415000000
C105: Total staff costs | E105: 3331000000 | F105: 3516000000 | G105: 3777000000 | H105: 3972000000
C108: Remuneration | E108: 2022 | F108: 2023 | G108: 2024 | H108: 2025
B109: 2025 People Report | C109: Trends in Social Benefits (MM€) (CaixaBank S.A.) | E109: 369.5 | F109: 471.2 | G109: 504.1 | H109: 515.6
B110: (p. 9, 129, 135, 186, 187) | C110: Types of benefits and number of beneficiaries (MM€) (CaixaBank S.A.) | D110: Contribution to the Pension System | E110: 168.8 | F110: 176.7 | G110: 182.1 | H110: 205.6
D111: Insurance | E111: 23.7 | F111: 24.7 | G111: 27.2 | H111: 34.4
D112: Aid for family situations | E112: 129.6 | F112: 129.4 | G112: 130.9 | H112: 131.9
D113: Aid for personal situations | E113: 43.2 | F113: 40.4 | G113: 44.3 | H113: 46.2
D114: Credit facilities for employees | E114: 4.2 | F114: 100 | G114: 119.6 | H114: 97.5
C115: Average total remuneration by professional category and gender (€) (the average remuneration per person is currently published) (CaixaBank S.A.) | D115: Directors (women) | G115: 115641 | H115: 125954
D116: Middle management (women) | G116: 92088 | H116: 95647
D117: Rest of employees (women) | G117: 69125 | H117: 73022
D118: Total (women) | G118: 77723 | H118: 82509
D119: Directors (total) | G119: 128069 | H119: 140361
D120: Middle management (total) | G120: 97104 | H120: 100546
D121: Rest of employees (total) | G121: 70175 | H121: 74124
D122: Total | G122: 83152 | H122: 88435
C123: Average fixed salary by professional category and gender (€) (the average remuneration per person is currently published) (CaixaBank S.A.) | D123: Directors (women) | G123: 84494 | H123: 87761
D124: Middle management (women) | G124: 70960 | H124: 73016
D125: Rest of employees (women) | G125: 54648 | H125: 57567
D126: Total (women) | G126: 60447 | H126: 63467
D127: Directors (total) | G127: 91426 | H127: 94689
D128: Middle management (total) | G128: 73732 | H128: 75834
D129: Rest of employees (total) | G129: 55508 | H129: 58483
D130: Total | G130: 63860 | H130: 66925
C131: Adjusted pay gap (CaixaBank S.A.) (%) | E131: 1.1 | F131: 0.7 | G131: 0.7 | H131: 0.7
B132: Consolidated Management Report | C132: Unadjusted pay gap (CaixaBank Group) (%) | E132: 17 | F132: 16 | G132: 14 | H132: 13
C133: Employees below senior management level who receive long-term incentives from the company (%) | E133: 0.3 | F133: 0.44 | G133: 0.46 | H133: 0.43
C134: Employees who have access to the employee share ownership plan (ESOP) or employee share purchase plan (ESPP) (%) | E134: 100 | F134: 100 | G134: 100 | H134: 100
C136: Diversity indicators (CaixaBank S.A.) | E136: 2022 | F136: 2023 | G136: 2024 | H136: 2025
B137: 2025 People Report | C137: % Women on staff | E137: 57.5 | F137: 57.4 | G137: 57.4 | H137: 57.3
B138: (p.197) | C138: % Women in managerial positions | E138: 41.8 | F138: 43 | G138: 43.4 | H138: 44
C139: % Women in non-managerial positions | E139: 60.2 | F139: 59.8 | G139: 59.7 | H139: 59.5
C140: % Women in Junior Management | E140: 44 | F140: 46 | G140: 46 | H140: 47
C141: % Women in TOP Management | E141: 31 | F141: 33 | G141: 33 | H141: 34
C142: % Women in Revenue positions | E142: 43 | F142: 44 | G142: 45 | H142: 45
C143: % Access to managerial position | E143: 48.2 | F143: 51.6 | G143: 54.4 | H143: 53.8
C144: % Women designations | E144: 20.6 | F144: 21.7 | G144: 23.2 | H144: 23.7
C145: % Men designations | E145: 15.5 | F145: 17.3 | G145: 20 | H145: 19.8
C146: Employees with disability (number of employees) | D146: 407 | F146: 425 | G146: 463 | H146: 520
C147: % Generation Z (Born after 1992) | E147: 2.3 | F147: 3.1 | G147: 4.5 | H147: 5.4
C148: % Generation Y (millennial, born between 1982 and 1992) | E148: 15.6 | F148: 15.7 | G148: 16.1 | H148: 16.4
C149: % Generation X (born between 1971 and 1981) | E149: 68.4 | F149: 67.9 | G149: 66.5 | H149: 65.5
C150: % Baby Boomer (prior to 1971) | E150: 13.7 | F150: 13.3 | G150: 12.9 | H150: 12.7
C152: Indicators of equality and non-discrimination (CaixaBank S.A.) | E152: 2022 | F152: 2023 | G152: 2024 | H152: 2025
B153: 2025 People Report | C153: Total hirings | E153: 256 | F153: 635 | G153: 1140 | H153: 804
B154: (p.199) | C154: Total appointments | E154: 12352 | F154: 9098 | G154: 8027 | H154: 6361
C155: Employees with flexible working hours (number of employees) | E155: 24612 | F155: 25299 | G155: 25805 | H155: 27570
C156: Total workday reductions (number of reductions) | E156: 2326 | F156: 2017 | G156: 1997 | H156: 2013
C157: Total paid leave permits (number of permits) | E157: 3081 | F157: 2492 | G157: 2233 | H157: 2146
C158: Total leaves of absence (number of leaves) | E158: 526 | F158: 507 | G158: 438 | H158: 414
C159: Taking the minimum period due to a birth (%) | D159: Men | E159: 97.1 | F159: 99.4 | G159: 99.3 | H159: 100
D160: Women | E160: 98.6 | F160: 100 | G160: 100 | H160: 100
C161: Dismissals broken down by age and sex (number of dismissals) | D161: 77 | F161: 92 | G161: 70 | H161: 70
C163: Health and Safety (CaixaBank S.A.) | E163: 2022 | F163: 2023 | G163: 2024 | H163: 2025
B164: 2024 People Report | C164: Fatal accidents (number of accidents) | E164: 1 | F164: 0 | G164: 0 | H164: 0
B165: (p.137, 191, 195, 199) | C165: Serious accidents (number of accidents) | E165: 0 | F165: 0 | G165: 4 | H165: 0
C166: Non-serious or minor accidents (number of accidents) | E166: 349 | F166: 367 | G166: 357 | H166: 348
C167: Non-serious or minor accidents (%) | E167: 99.7 | F167: 100 | G167: 98.9 | H167: 100
C168: Manageable absenteeism hours (number of hours) | E168: 2690834 | F168: 2369326 | G168: 2393498 | H168: 2370102
C169: Manageable absenteeism (%) | E169: 4.59 | F169: 4.12 | G169: 4.1 | H169: 4
C170: Absenteeism rate (% of total days) | E170: 7 | F170: 6.3 | G170: 6.3 | H170: 6.2
C171: Total number of paid weeks of maternity leave available (number of weeks) | E171: 19.5 | F171: 19.5 | G171: 20.5 | H171: 23.5
C172: Total number of paid weeks of paternity leave available (number of weeks) | E172: 19.5 | F172: 19.5 | G172: 20.5 | H172: 23.5
C173: People completing the Health and Safety course annually (number of people) | E173: 315 | F173: 1113 | G173: 1443 | H173: 1096
C174: Health and safety campaigns (number of campaigns) | E174: 27 | F174: 74 | G174: 91 | H174: 103
C175: Offices upgraded to prevent physical robberies (number of offices) | E175: 403 | F175: 380 | G175: 677 | H175: 691
C176: Workplaces assessed for risks (number of workplaces) | E176: 663 | F176: 1010 | G176: 1228 | H176: 876
C177: Total number of workplace accidents (number of accidents) | E177: 350 | F177: 367 | G177: 361 | H177: 348
C179: Working conditions (CaixaBank S.A.) | E179: 2022 | F179: 2023 | G179: 2024 | H179: 2025
B180: 2024 People Report | C180: Workforce covered by collective bargaining agreement (%) | D180: 100 | F180: 100 | G180: 100 | H180: 100
B181: (p.195) | C181: Members on company committees (number of members) | D181: 957 | F181: 957 | G181: 957 | H181: 957
C182: Percentage of union representation | D182: CCOO members (number of members) | E182: 293 | F182: 293 | G182: 293 | H182: 293
D183: CCOO representation (%) | E183: 30.62 | F183: 30.62 | G183: 30.62 | H183: 30.62
D184: SECB members (number of members) | E184: 395 | F184: 395 | G184: 395 | H184: 395
D185: SECB representation (%) | E185: 41.27 | F185: 41.27 | G185: 41.27 | H185: 41.27
D186: UGT members (number of members) | E186: 176 | F186: 176 | G186: 176 | H186: 176
D187: UGT representation (%) | E187: 18.39 | F187: 18.39 | G187: 18.39 | H187: 18.39
D188: Other members (number of members) | E188: 93 | F188: 93 | G188: 93 | H188: 93
D189: Other representation (%) | E189: 9.72 | F189: 9.72 | G189: 9.72 | H189: 9.72
C192: CUSTOMERS | D192: Source: CaixaBank Group Consolidated Management Report / Interim Consolidated Management Report of the CaixaBank Group
B194: Workiva | C194: Customer details (number of customers) | E194: 2022 | F194: 2023 | G194: 2024 | H194: 2025
B195: Consolidated Management Report | C195: Total number of customers | E195: 18300000 | F195: 18200000 | G195: 18500000 | H195: 18900000
B196: (p. 13)
B197: S&P Questionnaire | C197: Customer satisfaction (%) | G197: 2024 | H197: 2025
B198: idG semestral 2025, pag 95 | C198: Satisfaction metric (Relational NPS) | G198: 15.7 | H198: 20.8
B199: Consolidated Management Report | C199: Percentage of customers covered | G199: 100 | H199: 100
B202: Workiva | C202: Customer Service Department (SAC) | E202: 2022 | F202: 2023 | G202: 2024 | H202: 2025
B203: Consolidated Management Report | C203: Complaints received prior to legal proceedings (number of complaints) | E203: 30415 | F203: 103754 | G203: 343973 | H203: 96767
B204: (p. 413-414) | C204: Other complaints received (number of complaints) | E204: 170467 | F204: 175793 | G204: 141415 | H204: 124005
C205: Types of complaints (%) | D205: Asset-side operations | E205: 22 | F205: 40 | G205: 72 | H205: 33
D206: Cards and POS terminals | E206: 23 | F206: 21 | G206: 4 | H206: 29
D207: Liability-side operations | E207: 28 | F207: 16 | G207: 7 | H207: 8
D208: Insurance and pension funds | E208: 6 | F208: 7 | G208: 3 | H208: 6
D209: Collection and payment services | E209: 6 | F209: 4 | G209: 3 | H209: 4
D210: Channel | E210: 11 | F210: 9 | G210: 4 | H210: 4
D211: Investment services | E211: 1 | F211: 1 | G211: 0 | H211: 1
D212: Other services | E212: 3 | F212: 3 | G212: 7 | H212: 15
C213: Average time taken to resolve complaints (%) | D213: Less than 10 days | E213: 64 | F213: 78 | G213: 57 | H213: 78
D214: 10–30 days | E214: 29 | F214: 20 | G214: 30 | H214: 20
D215: More than 30 days | E215: 7 | F215: 2 | G215: 13 | H215: 2
C216: Number of complaints resolved (%) | D216: In favour of the claimant | E216: 47 | F216: 50 | G216: 49 | H216: 44
D217: In favour of the company | E217: 35 | F217: 37 | G217: 34 | H217: 35
D218: Cases dismissed as inadmissible | E218: 18 | F218: 13 | G218: 17 | H218: 21
B220: Workiva | C220: Branch network | G220: 2024 | H220: 2025
B221: Consolidated Management Report | C221: ATMs (number of ATMs) | G221: =11137+1233 -> 12370 | H221: 12272
B222: (p. 13) | C222: Market shares (%) | D222: Loans to households and businesses | G222: 23.4 | H222: 23.4
... 119 more rows

Sheet GOVERNANCE
B4: Governance indicators summary
B5: 296
B6: 252
C8: CORPORATE GOVERNANCE | D8: Source: CaixaBank Group Consolidated Management Report | H8: Source: CaixaBank Group Consolidated Management Report | N8: Source: CaixaBank Group Consolidated Management Report | S8: Source: CaixaBank Group Consolidated Management Report
B9: CEO Compensation S&P and ISS p. 61 IARC
B10: Workiva | C10: Board Composition | D10: 2024 | E10: 2025 | F10: 2026* | H10: Board of Directors Activity | J10: 2024 | K10: 2025 | N10: Shareholding Structure | P10: 2024 | Q10: 2025 | S10: Remuneration | U10: 2024 | V10: 2025 | X10: Annual General Meeting | Z10: 2024 | AA10: 2025
B11: Consolidated Management Report | C11: Directors (number) | D11: 15 | E11: 15 | F11: 15 | H11: Meetings (number) | J11: 15 | K11: 13 | N11: Shareholders (number) | P11: 555620 | Q11: 515620 | S11: CEO’s short-term variable remuneration (thousands of €) | U11: 263 | V11: 384 | X11: Quorum reached at the AGM (%) | Z11: 77.82 | AA11: 82.81
B12: (p. 43, 45, 47, 55-58, 60, 74, 77-78, 588, 590, 817, 886, 928) | C12: Independent (%) | D12: 60 | E12: 60 | F12: 67 | H12: Attendance (%) | J12: 99 | K12: 98 | N12: Shares (number) | P12: 7,174,937,846 | Q12: 7,024,520,689 | S12: Long-term variable remuneration for the CEO (thousands of €) | U12: 175 | V12: 177 | X12: Average approval rating at the AGM (%) | Z12: 93.5 | AA12: 94.07
C13: Executive (%) | D13: 13 | E13: 7 | F13: 7 | H13: Board members with an attendance rate of less than 75% at board and committee meetings (number) | J13: 0 | K13: 0 | N13: Votes per share (number) | P13: 7,174,937,847 | Q13: 7,024,520,689 | S13: Total CEO compensation (thousands of €)1 | U13: 4505.5 | V13: 5193.6
C14: Proprietary (%) | D14: 20 | E14: 20 | F14: 20 | H14: Maximum continuous term of office as an independent director (years) | J14: 12 | K14: 12 | N14: Fundación “la Caixa” (%) | P14: 31.22 | Q14: 31.27 | S14: . | U14: 72.719 | V14: 76.516
C15: Others (%) | D15: 7 | E15: 13 | F15: 7 | N15: FROB (%) | P15: 18.03 | Q15: 18.08 | S15: The ratio between the total annual compensation of the CEO and the mean or median employee compensation (%)2 | U15: 61.95279088 | V15: 67.87754195
C16: Re-election at Annual General Meeting (%) | D16: 7 | E16: 20 | F16: 20 | N16: Significant shareholdings (%) according to the CNMV | P16: 53.38 | Q16: 54.07 | S16: Mean employee compensation of CaixaBank Group (thousands of €)3 | U16: 77.952 | V16: 82.214
C17: Re-election and mandates (years) | D17: 4 | E17: 4 | F17: 4 | N17: Treasury shares, directors and other shareholders represented on the Board (%) | P17: 0.8 | Q17: 0.24 | S17: CEO-to-Employee Pay Ratio (%) - Total CEO compensation / Mean employee compensation of CaixaBank Group | U17: =+U13/U16 -> 57.79838875 | V17: =+V13/V16 -> 63.17172258
C18: Foreigners (%) | D18: 13 | E18: 13 | F18: 13 | N18: Shareholding Free float under management (%) | P18: 49.9 | Q18: 50.4 | S18: Shares based on outstanding incentive schemes as a percentage of total share capital (%) | U18: 0.15 | V18: 0.11
C19: Nationality (number) | D19: 3 | E19: 3 | F19: 3 | N19: Free float (%) | O19: Retail underlying | P19: 26.8 | Q19: 23.7
C20: Lead independent director (number) | D20: 1 | E20: 1 | F20: 1 | O20: Institutional investors (national and international) | P20: 72 | Q20: 75.6 | S20: 1 Notes to the 2025 Consolidated Financial Statements, page 129 (2025 Consolidated Management Report, page 1087)
C21: Women (%) | D21: 40 | E21: 40 | F21: 40 | O21: Employees | P21: 1.3 | Q21: 0.8 | S21: 2 Consolidated Management Report 2025, page 375. CaixaBank calculates the annual total remuneration ratio for Group employees as the annual total remuneration (fixed and variable pay, including personal contributions and other employee benefits) of the highest-paid individual compared with the median annual total remuneration of all Group employees (fixed and variable pay, including personal contributions and other employee benefits), based on annualised full-time remuneration and excluding the highest-paid individual.
C22: Men (%) | D22: 60 | E22: 60 | F22: 60 | N22: Shareholder remuneration | O22: Dividend (€ per share) | P22: 0.4352 | Q22: 0.5
B23: Corporate website | C23: *Note: Figures updated following the Annual General Meeting held on 27 March 2026 | O23: Pay-out (%) | P23: 53.5 | Q23: 59.4
B25: Workiva | C25: Executive Comittee Composition | D25: 2024 | E25: 2025 | H25: Executive Management Activity | J25: 2024 | K25: 2025 | S25: 3 Consolidated Management Report 2025, page 342
B26: Consolidated Management Report | C26: Directors (number) | D26: 7 | E26: 6 | H26: Meetings (number) | J26: 22 | K26: 24 | N26: Skills matrix | O26: Source: Annual Corporate Governance Report
B27: (p. 55-58, 73, 74, 77-78, 85-89) | C27: Independent (%) | D27: 57.14 | E27: 66.67 | H27: Attendance (%) | J27: 97 | K27: 96
C28: Executive (%) | D28: 28.57 | E28: 16.67
C29: Proprietary (%) | D29: 14.29 | E29: 16.67
C30: Others (%) | D30: - | E30: -
C31: Re-election at Annual General Meeting (%) | D31: - | E31: 17
C32: Re-election and mandates (years) | D32: 4 | E32: 4
C33: Foreigners (%) | D33: 0 | E33: 0
C34: Nationality (number) | D34: 1 | E34: 1
C35: Women (%) | D35: 42.86 | E35: 50
C36: Men (%) | D36: 57.14 | E36: 50
B40: Workiva | C40: Audit and Control Committee Composition | D40: 2024 | E40: 2025 | H40: Audit and Control Committee Activity | J40: 2024 | K40: 2025
B41: Consolidated Management Report | C41: Directors (number) | D41: 5 | E41: 5 | H41: Meetings (number) | J41: 13 | K41: 13
B42: (p. 55-58, 74, 77-78, 107-119) | C42: Independent (%) | D42: 60 | E42: 60 | H42: Attendance (%) | J42: 100 | K42: 98
C43: Executive (%) | D43: - | E43: -
C44: Proprietary (%) | D44: 40 | E44: 40
C45: Others (%) | D45: - | E45: -
C46: Re-election at Annual General Meeting (%) | D46: - | E46: 20
C47: Re-election and mandates (years) | D47: 4 | E47: 4
C48: Foreigners (%) | D48: 0 | E48: 0
C49: Nationality (number) | D49: 1 | E49: 1
C50: Women (%) | D50: 40 | E50: 40
C51: Men (%) | D51: 60 | E51: 60
B55: Workiva | C55: Appointments and Sustainability Committee Composition | D55: 2024 | E55: 2025 | H55: Appointments and Sustainability Committee Activity | J55: 2024 | K55: 2025
C56: Directors (number) | D56: 5 | E56: 5 | H56: Meetings (number) | J56: 15 | K56: 12
B57: Consolidated Management Report | C57: Independent (%) | D57: 80 | E57: 60 | H57: Attendance (%) | J57: 97 | K57: 93
B58: (p. 55-58, 74, 77-78, 90-94) | C58: Executive (%) | D58: - | E58: -
C59: Proprietary (%) | D59: - | E59: 20
C60: Others (%) | D60: 20 | E60: 20
C61: Re-election at Annual General Meeting (%) | D61: - | E61: 20
C62: Re-election and mandates (years) | D62: 4 | E62: 4
C63: Foreigners (%) | D63: 40 | E63: 40
C64: Nationality (number) | D64: 3 | E64: 3
C65: Women (%) | D65: 20 | E65: 40
C66: Men (%) | D66: 80 | E66: 60
B70: Workiva | C70: Remuneration Committee Composition | D70: 2024 | E70: 2025 | H70: Remuneration Committee Activity | J70: 2024 | K70: 2025
B71: Consolidated Management Report | C71: Directors (number) | D71: 5 | E71: 5 | H71: Meetings (number) | J71: 9 | K71: 7
B72: (p. 55-58, 74, 77-78, 99-102) | C72: Independent (%) | D72: 80 | E72: 60 | H72: Attendance (%) | J72: 100 | K72: 100
C73: Executive (%) | D73: - | E73: -
C74: Proprietary (%) | D74: 20 | E74: -
C75: Others (%) | D75: - | E75: 40
C76: Re-election at Annual General Meeting (%) | D76: - | E76: 40
C77: Re-election and mandates (years) | D77: 4 | E77: 4
C78: Foreigners (%) | D78: 0 | E78: 0
C79: Nationality (number) | D79: 1 | E79: 1
C80: Women (%) | D80: 60 | E80: 40
C81: Men (%) | D81: 40 | E81: 60
B85: Workiva | C85: Risks Committee Composition | D85: 2024 | E85: 2025 | H85: Risks Committee Activity | J85: 2024 | K85: 2025
B86: Consolidated Management Report | C86: Directors (number) | D86: 5 | E86: 5 | H86: Meetings (number) | J86: 13 | K86: 13
B87: (p. 55-58, 74, 77-78, 95-98) | C87: Independent (%) | D87: 60 | E87: 60 | H87: Attendance (%) | J87: 98 | K87: 96
C88: Executive (%) | D88: - | E88: -
C89: Proprietary (%) | D89: 20 | E89: -
C90: Others (%) | D90: 20 | E90: 40
C91: Re-election at Annual General Meeting (%) | D91: - | E91: 40
C92: Re-election and mandates (years) | D92: 4 | E92: 4
C93: Foreigners (%) | D93: 20 | E93: 20
C94: Nationality (number) | D94: 2 | E94: 2
C95: Women (%) | D95: 40 | E95: 60
C96: Men (%) | D96: 60 | E96: 40
B100: Workiva | C100: Innovation, Technology and Digital Transformation Committee Composition | D100: 2024 | E100: 2025 | H100: Innovation, Technology and Digital Transformation Committee Activity | J100: 2024 | K100: 2025
B101: Consolidated Management Report | C101: Directors (number) | D101: 7 | E101: 7 | H101: Meetings (number) | J101: 4 | K101: 4
B102: (p. 55-58, 74, 77-78, 103-106) | C102: Independent (%) | D102: 71.43 | E102: 71 | H102: Attendance (%) | J102: 93 | K102: 92
C103: Executive (%) | D103: 28.57 | E103: 14
C104: Proprietary (%) | D104: - | E104: 14
C105: Others (%) | D105: - | E105: -
C106: Re-election at Annual General Meeting (%) | D106: - | E106: -
C107: Re-election and mandates (years) | D107: 4 | E107: 4
C108: Foreigners (%) | D108: 14 | E108: 14
C109: Nationality (number) | D109: 2 | E109: 2
C110: Women (%) | D110: 43 | E110: 29
C111: Men (%) | D111: 57 | E111: 71
C114: Management Committee' Stake (%) | E114: 2026*
B115: DRU 2026 (pg. 1216) | C115: Iñaki Badiola Gómez | E115: 1e-05
C116: Luis Javier Blas Agüeros | E116: 1e-05
C117: Matthias Bulach | E117: 1e-05
C118: Óscar Calderón de Oya | E118: 2e-05
C119: Natividad Capella Pifarre | E119: 2e-05
C120: Manuel Galarza | E120: 1e-05
C121: David López Puig | E121: 1e-05
C122: Mª Luisa Martínez Gistau | E122: 1e-05
C123: Jordi Mondéjar López | E123: 1e-05
C124: Javier Pano Riera | E124: 2e-05
C125: Marisa Retamosa Fernández | E125: 1e-05
C126: Javier Valle T-Figueras | E126: 0
C127: Mariona Vicens | E127: 1e-05
C128: Total | E128: 0.00015
C129: *Note: April 2026
C131: BUSINESS CONDUCT | D131: Source: CaixaBank Group Consolidated Management Report / Consolidated Financial Statements of CaixaBank Group
B133: Workiva | C133: Whistleblowing Mechanism (Whistleblower channel)
C135: Reporting Areas (number) - reported incidents or cases | D135: 2022 | E135: 2023 | F135: 2024 | G135: 2025
B136: Consolidated Management Report | C136: Anti-Corruption Policy (Corruption or bribery) | D136: 0 | E136: 0 | F136: 5 | G136: 1
B137: (p. 477) | C137: Harassment at work and sexual harassment (Discrimination or harassment) | D137: 1 | E137: 14 | F137: 37 | G137: 33
C138: Data protection/ confidentiality and ethical use of data (Customer privacy data) | D138: 1 | E138: 9 | F138: 10 | G138: 8
C139: Conflicts of interest | D139: 0 | E139: 5 | F139: 7 | G139: 11
C140: Prevention of money laundering and terrorist financing (Money laundering or insider trading) | D140: 2 | E140: 0 | F140: 1 | G140: 2
C145: Contributions to associations and political parties (€) | I145: Other large expenditures (€)
B146: Consolidated Management Report | C146: Categories | D146: 2022 | E146: 2023 | F146: 2024 | G146: 2025 | I146: Name of organization | M146: 2025
B147: (p. 424, 490) | C147: Lobbying, interest representation sector association or similar | D147: 2597000 | E147: 3132000 | F147: 3415000 | G147: 3600000 | I147: CECA | M147: 1900000
B148: corporate website | C148: Local, regional or national political campaigns / organizations / candidates | D148: 0 | E148: 0 | F148: 0 | G148: 0 | I148: Plan Familia Adecco | M148: 1700000
C149: Trade associations or tax-exempt groups (e.g. think tanks) | D149: 4233000 | E149: 4175000 | F149: 4645000 | G149: 4200000 | I149: Mobile World Capital Barcelona | M149: 500000
C150: Other (e.g. spending related to ballot measures or referendums) | D150: 0 | E150: 0 | F150: 0 | G150: 0 | I150: Unespa | M150: 700000
B153: Workiva | C153: Tax Transparency
B155: Consolidated Management Report | C155: OWN TAXES AND TAXES COLLECTED FROM THIRD PARTIES by CaixaBank S.A (€) | E155: 2024 | F155: 2025
B156: (p. 506) | C156: Own taxes paid | E156: 3125000000 | F156: 2981000000
C157: Taxes collected from third parties | E157: 2149000000 | F157: 2318000000
C158: Total taxes paid and collected from third parties | E158: 5274000000 | F158: 5299000000
B161: Consolidated Management Report | C161: Aggregate figures for own taxes paid by the CaixaBank Group (€) | E161: 2024 | F161: 2025
B162: (p. 506) | C162: Direct taxes | D162: Total direct taxes | E162: 2215000000 | F162: 1908000000
B163: Tax Report | D163: Corporation income tax | E163: 1448000000 | F163: 1057000000
B164: (p. 15) | D164: Bank levy | E164: 493000000 | F164: -
D165: Tax on interest and commission margins (IMIC) | E165: - | F165: 580000000
D166: Tax on bank deposits (IDEC) | E166: 108000000 | F166: 120000000
D167: Tax on property and economic activity | E167: 165000000 | F167: 151000000
C168: Indirect taxes | D168: Total indirect taxes | E168: 683000000 | F168: 872000000
D169: Non-deductible value added tax | E169: 377000000 | F169: 440000000
D170: Stamp duty (AJD) | E170: 282000000 | F170: 410000000
D171: Other indirect taxes | E171: 24000000 | F171: 22000000
C172: Social security contributions paid by the company | E172: 694000000 | F172: 761000000
C175: Contribution by geography of CaixaBank Group (€)
B176: Consolidated Management Report | D176: Number of employees | E176: Operating income | F176: Profit/loss before tax | G176: Corporate income tax expense | H176: Corporate income tax paid
B177: (p. 508) | D177: 2025 | E177: 2025 | F177: 2025 | G177: 2025 | H177: 2025
B178: (p. 222) | C178: Spain | D178: 42122 | E178: 23511000000 | F178: 7446000000 | G178: -2439000000 | H178: 620000000
C179: Portugal | D179: 4672 | E179: 1971000000 | F179: 786000000 | G179: -201000000 | H179: 318000000
C180: France | D180: 36 | E180: 315000000 | F180: 115000000 | G180: -28000000 | H180: 30000000
C181: Poland | D181: 31 | E181: 131000000 | F181: 2000000 | G181: -2000000 | H181: 11000000
C182: United Kingdom | D182: 42 | E182: 352000000 | F182: 104000000 | G182: -39000000 | H182: 25000000
C183: Germany | D183: 40 | E183: 409000000 | F183: 102000000 | G183: -34000000 | H183: 16000000
C184: Morocco | D184: 41 | E184: 25000000 | F184: 17000000 | G184: -7000000 | H184: 5000000
C185: Italy | E185: 146000000 | F185: 61000000 | G185: -20000000 | H185: 29000000
C186: Switzerland | D186: 2 | E186: 0 | F186: -1000000 | G186: 0 | H186: 0
C187: Luxembourg | E187: 71000000 | F187: 43000000 | G187: -5000000 | H187: 0
C188: Others | D188: 134 | E188: - | F188: - | G188: - | H188: -
C189: Total | D189: =SUM(D178:D188) -> 47120 | E189: =SUM(E178:E188) -> 26931000000 | F189: =SUM(F178:F188) -> 8675000000 | G189: =SUM(G178:G188) -> -2775000000 | H189: =SUM(H178:H188) -> 1054000000
B193: Consolidated Management Report | C193: Total tax rate (%) | E193: 2024 | F193: 2025
B194: (p. 506) | C194: Total tax rate | E194: 34 | F194: 32
B197: Workiva | C197: SUPPLIERS | D197: Source: CaixaBank Group Consolidated Management Report
B199: Consolidated Management Report | C199: Suppliers | E199: 2024 | F199: 2025
B200: (p. 492-493, 495, 499-500, 502) | C200: Number of active suppliers | E200: 2305 | F200: 2248
C201: Volume invoiced active suppliers (€) | E201: 3036000000 | F201: 3698000000
C202: Supplier satisfaction index (%) | E202: - | F202: 83.5
C203: Total number of approved suppliers at year-end (number of suppliers) | E203: 1551 | F203: 1701
C204: Supplier expenditure (€) | E204: 3633000000 | F204: 4051000000
C205: Suppliers who have provided social and environmental certificates (number of suppliers) | E205: 688 | F205: 303
C206: Suppliers who have provided ISO 14001 certification (number of suppliers) | E206: 387 | F206: 224
C207: Audits carried out across all procurement categories (Facilities & Logistics, Construction, IT, Professional Services and Marketing) (number of audits) | E207: 34 | F207: 30
C208: Procurement processes conducted via electronic negotiation (number of processes) | E208: 1383 | F208: 1687
C209: Value of contracts awarded via electronic negotiation (€) | E209: 1550000000 | F209: 2806000000
C210: Proportion of contracts awarded to local suppliers – Spain (%) | E210: 0.81 | F210: 0.83
C211: Procurement processes (breakdown) (%) | D211: IT | E211: 48 | F211: 46
D212: Construction and General Services | E212: 7 | F212: 5
D213: Professional Services | E213: 27 | F213: 29
D214: Facilities Management | E214: 5 | F214: 4
D215: Marketing and Communications | E215: 12 | F215: 16
C218: Red lines for recruitment on ESG grounds (applicable this year) | E218: 2024 | F218: 2025
C219: 1. Knowledge of the Code of Conduct | E219: Yes | F219: Yes
C220: 2. Compliance with all applicable laws | E220: Yes | F220: Yes
C221: 3. Implementation of measures to ensure a workplace free from discrimination and harassment | E221: Yes | F221: Yes
C222: 4. Declaration of knowledge of and adherence to the Principles of the United Nations Global Compact | E222: Yes | F222: Yes
C223: 5. Declaration that there is no forced or child labour | E223: Yes | F223: Yes
C224: 6. Adherence to all summer timetables for each children’s section | E224: Yes | F224: Yes
C225: 7. Freedom of association and collective bargaining | E225: Yes | F225: Yes
C226: 8. Health and safety at work | E226: Yes | F226: Yes
B228: Workiva | C228: ESG METRICS IN REMUNERATION SCHEMES | D228: Source: CaixaBank Group Consolidated Management Report
C230: Incorporating sustainability into the remuneration model
B231: Consolidated Management Report | C231: Material issue under the 2025 double materiality | D231: Strategic Plan 2025–2027 | E231: Link to the remuneration of the executive director, CEO, of the Board of Directors
B232: (p. 228, 229, 373, 885-888) | C232: Sustainable finance | D232: Sustainable mobilisation KPI: 100,000 million € | E232: Sustainability 10% (25%)
C233: Own workforce | D233: Percentage of women in management positions | E233: Sustainability 10% (25%)
C234: Customers | D234: Weighted average (relational NPS 60% and transactional NPS 40%) | E234: Quality 15%
B236: Consolidated Management Report | C236: Remuneration Metrics for Annual Factors | H236: Remuneration Metrics for Multi - Year Factors
B237: (p. 128, 885, 919, 921)
C238: Objectifiable item | D238: Weighting | E238: Strategic line | H238: Objectifiable item | J238: Weighting | K238: Strategic line
C239: ROTE (Return on Tangible Equity) | D239: 0.2 | E239: Growth of the business, developing the best value proposition for our costumers | H239: CETI | J239: 0.25 | K239: Growth of the business, developing the best value proposition for our costumers
C240: Recurring cost-to-income ratio | D240: 0.15 | E240: Growth of the business, developing the best value | H240: TSR (Average of the index Euro Stoxx Banksm - Gross Return) | J240: 0.25 | K240: Growth of the business, developing the best value proposition for our costumers
C241: Change in non-performing assets 10% | D241: 0.1 | E241: Growth of the business, developing the best value proposition for our costumers | H241: Multi-year ROTE | J241: 0.25 | K241: Growth of the business, developing the best value proposition for our costumers
C242: RAF (Risk Appetite Framework) | D242: 0.2 | E242: Growth of the business, developing the best value proposition for our customers | H242: Sustainability (combination of ESG objectives) | J242: 0.25 | K242: Sustainability – leaders in Europe
C243: Quality | D243: 0.15 | E243: Operate with an efficient service model that is maximally tailored to customer preferences | I243: Sustainable finance mobilisation | J243: 0.75 | K243: Sustainability factors (ESG)
C244: Market share | D244: 0.1 | E244: Growth of the business, developing the best value proposition for our costumers | I244: % of women in management positions | J244: 0.25 | K244: Sustainability factors (ESG)
C245: Sustainability (combination of ESG objectives) | D245: 0.1 | E245: Sustainability – leaders in Europe
C246: Cumulative mobilisation of sustainable finance | D246: 0.25 | E246: Sustainability factors (ESG)
C247: % companies with credit exposure to sectors under the Net Zero perimeter at the end of 2024 with which engagement has been carried out | D247: 0.25 | E247: Sustainability factors (ESG)
... 150 more rows

Sheet SUSTAINABLE FINANCE
B5: Summary of indicators FS
B6: 104
B7: =B6-29 -> 75
C9: SUSTAINABLE FINANCE | E9: Source: CaixaBank Group Consolidated Management Report/Consolidated Annual Report / Detail of the mobilization of sustainable financing / Responsible investing: Proprietary products / Responsible investing: Third-party products
B11: Workiva | C11: Sustainable finance mobilisation 1 | E11: Target 2022-2024 (€) | F11: Target 2025-2027 (€) | G11: Target progress 2025 (%)
B12: Consolidated Management Report 2025 | C12: Mobilisation target | E12: 64000000000 | F12: 100000000000 | G12: 46
B14: (p. 229) | C14: (1 ) The cumulative amount of sustainable finance mobilised during the period 2025–2027 is the sum of: (i) new sustainable finance provided to individuals and businesses through the Retail, Corporate, CIB, MicroBank, CPC and BPI divisions, with the amount taken into account for mobilisation purposes being the risk limit formalised in sustainable finance transactions with customers, including long-term, working capital and unsecured financing, whilst also taking into account novation and tacit or explicit renewal transactions relating to sustainable financing, and (ii) sustainable intermediation in channelling third-party funds towards sustainable investments, including: (a) the amount of CaixaBank’s participation in the placement of clients’ sustainable bonds; (b) the net increase, excluding market effects, in assets under management in equity and corporate fixed-income products managed by CaixaBank Asset Management in accordance with MiFID II, c) the gross increase, excluding market effects, in assets under management at VidaCaixa in sustainable products under the SFDR, d) the intermediation of sustainable funds from third-party managers under the SFDR, and e) the marketing of sustainable renting. The criteria for classifying financing as sustainable are set out in CaixaBank’s Sustainable and Transition Finance Eligibility Guide, developed with the support of Sustainalytics.
B15: Workiva
C17: Sustainable financing
B20: Workiva | C20: Sustainable financing by business (€) | F20: 2024 | G20: 2025
C21: Retail | F21: 3338000000 | G21: 4615000000
B22: Consolidated Management Report 2025 | C22: Business | F22: 4783000000 | G22: 8893000000
B23: (p. 529) | C23: CIB | F23: 19530000000 | G23: 23191000000
B25: Workiva | C25: Sustainable financing by typology (€) | F25: 2024 | G25: 2025
C26: Green | F26: 10673000000 | G26: 18640000000
B27: Consolidated Management Report 2025 | C27: Transition | F27: - | G27: 8826000000
B28: (p. 529) | C28: Sustainability profile | F28: 10994000000 | G28: 1741000000
C29: Social | F29: 5984000000 | G29: 7492000000
B31: Workiva | C31: Green financing by category (€) | F31: 2024 | G31: 2025
B32: Consolidated Management Report 2025 | C32: Renewable energy | F32: 4405000000 | G32: 7285000000
B33: (p. 530) | C33: Energy efficiency (incl Real Estate) | F33: 3806000000 | G33: 6398000000
C34: Sustainable mobility | F34: 1585000000 | G34: 1835000000
C35: Enabling activities | F35: - | G35: 1516000000
C36: Other (incl Circular economy) | F36: =581000000+296000000 -> 877000000 | G36: 1606000000
B38: Workiva | C38: Social finance by category (€) | F38: 2024 | G38: 2025
B39: Consolidated Management Report 2025 | C39: Microcredits granted | F39: 2066000000 | G39: 2444000000
B40: (p. 532) | C40: Granted in social housing. | F40: 368000000 | G40: 290000000
C41: Granted during 2025 in funding lines for those affected by the catastrophic flooding in Valencia in October 2024 | F41: - | G41: 174000000
C42: Granted in financing to entities and projects that have a positive social impact by contributing to the most relevant SDGs | F42: 3550000000 | G42: =7492000000-G39-G40-G41 -> 4584000000
B44: Workiva | C44: Financing in Sustainability-Linked Loans by category (%) | F44: 2024 | G44: 2025
B45: Consolidated Management Report 2025 | C45: Transition activities | F45: 59.9 | G45: 5
B46: (p. 534) | C46: SLL Mitigation | F46: - | G46: 79
C47: SLL Sustainability profile | F47: - | G47: 16
C48: Governance | F48: 19.9 | G48: -
C49: Nature | F49: 6.9 | G49: -
C50: Social | F50: 5.5 | G50: -
C51: Circular economy | F51: 5.2
C52: Others (Diversity, Water resources, ...) | F52: 2.6 | G52: -
C55: Other breakdowns of sustainable financing mobilisation
B57: DJBiC S&P questionnaire | C57: Mobilisation of sustainable finance- Corporate & SME lending | F57: 2024 | G57: 2025
B58: Consolidated Management Report 2025/Carlos | C58: Green loans, social loans, sustainable loans (€) | F58: =6845000000+3549000000 -> 10394000000 | G58: =11388000000+4148000000 -> 15536000000
B59: Consolidated Management Report 2025/Carlos | C59: Sustainability-linked corporate loans (€) | F59: 9135000000 | G59: 7655000000
B60: Consolidated Annual Financial Report (pg. 529) | C60: Business (€) | F60: 4783000000 | G60: 8893000000
B61: Consolidated Annual Financial Report (pg. 1044) | C61: Non-financial corporations and individual entrepreneurs exposure (Total value or corporate lending) (€) | F61: 197430000000 | G61: 207210000000
C62: Total sustainable value (€) | F62: =SUM(F58:F60) -> 24312000000 | G62: =SUM(G58:G60) -> 32084000000
B64: DJBiC S&P questionnaire | C64: Mobilisation of sustainable finance- Consumer/Retail | F64: 2024 | G64: 2025
B65: Consolidated Annual Financial Report (pg. 529) | C65: Retail (Sustainable loans and mortgages) (€) | F65: 3338000000 | G65: 4615000000
B66: Consolidated Annual Financial Report (pg. 1044) | C66: Other households (Total value of personal and mortgage lending) (€) | F66: 159876000000 | G66: 169502000000
C70: Sustainable intermediation
B72: Workiva | C72: Sustainable intermediation | F72: 2024 | H72: 2025
B73: Consolidated Management Report 2025 | F73: Units | G73: € | H73: Units | I73: €
B74: (p.535) | C74: Participation in the placement of green bonds | F74: 10 | G74: 802000000 | H74: 20 | I74: 1490000000
C75: Participation in the placement of social bonds | F75: - | G75: - | H75: - | I75: -
C76: Participation in the placement of sustainable bonds | F76: 3 | G76: 367000000 | H76: 6 | I76: 688000000
C77: Participation in the placement of sustainability-linked bonds (SLB) | F77: 3 | G77: 200000000 | H77: 6 | I77: 321000000
C78: Increase sustainable assets under management | F78: - | G78: 6936000000 | H78: - | I78: 6528000000
C79: Total sustainable intermediation | F79: - | G79: 8306000000 | H79: - | I79: 9468000000
C83: Responsible investment
B85: Inversión responsable: Productos propios | C85: Responsible investment (Proprietary sustainable investment products) (€) | I85: Responsible investment (Proprietary sustainable investment products) (€)
F89: 2024 | G89: 2025 | L89: 2024 | M89: 2025
B90: DJBiC S&P questionnaire (tanto para VidaCaixa y CaixaBank AM) | C90: ESG Integration | F90: 7.162009006e+10 | G90: 75340974328 | I90: ESG Integration | L90: 2.889417906e+10 | M90: 31605842893
C91: Best in Class | F91: 5.215258336e+10 | G91: 55002381499 | I91: Best in Class | L91: 670244525.3 | M91: 727609310
C92: Thematic | F92: 84208798.77 | G92: 63931872 | I92: Thematic | L92: 493432540.9 | M92: 452709104
C93: Impact investing | F93: 7000000 | G93: 5712301 | I93: Impact investing | L93: 1216751048 | M93: 991411778
C94: Other | F94: - | G94: - | I94: Other | L94: 6.199066574e+10 | M94: 70263027060
B95: Consolidated Management Report 2025 | C95: Customer funds under management (Total Assets Under Management [AUM]) | F95: 123864000000 | G95: 130413000000 | I95: Total Assets Under Management [AUM] | L95: 9.475231364e+10 | M95: 1.052104419e+11
B96: Este año coincide el dato con el siguiente puesto que como se indica en dicha página en 2025 el 100% de los AuM de VDC tienen consideración ESG. | C96: Assets under management with consideration of ESG aspects [according to UNPRI criteria] (Total sustainable investing AUM) | F96: 123864000000 | G96: =SUM(G90:G94) -> 130413000000 | I96: Assets under management with consideration of ESG aspects [according to UNPRI criteria] (Total sustainable investing AUM) | L96: 9.326527291e+10 | M96: 1.040406001e+11
B159: Workiva | C159: Distribution of products held under SFDR (€) | F159: 2024 | G159: 2025 | I159: Distribution of products held under SFDR (€) | L159: 2024 | M159: 2025
B160: Consolidated Management Report 2025 | C160: Customer funds under management in Spain | F160: 123864000000 | G160: 130413000000 | I160: Assets under management in Spain | L160: 103597000000 | M160: 115261000000
B161: VC (p. 540-541) | C161: Total assets classified under Articles 8 and 9 of the SFDR in Spain | F161: =F163+F164 -> 34766000000 | G161: =G163+G164 -> 36551000000 | I161: Discretionary portfolio management in Spain | L161: 51746000000 | M161: 58165000000
B162: dato calculado (art8+art9) | C162: Products classified under Article 6 of the SFDR in Spain | F162: 14023000000 | G162: 15482000000 | I162: Total assets classified under Articles 8 and 9 of the SFDR in Spain | L162: =L164+L165 -> 31275000000 | M162: =M164+M165 -> 33777000000
B163: CAM (p. 543-545) | C163: Products classified under Article 8 of the SFDR in Spain | F163: 34759000000 | G163: 36545000000 | I163: Products classified under Article 6 of the SFDR in Spain | L163: 63478000000 | M163: 71433000000
C164: Products classified under Article 9 of the SFDR in Spain | F164: 7000000 | G164: 6000000 | I164: Products classified under Article 8 of the SFDR in Spain | L164: 30058000000 | M164: 32786000000
I165: Products classified under Article 9 of the SFDR in Spain | L165: 1217000000 | M165: 991000000
B168: Workiva | C168: Impact - Exposure to sustainable bonds (€) | F168: 2024 | G168: 2025 | I168: Impact - Exposure to sustainable bonds (€) | L168: 2024 | M168: 2025
B169: Consolidated Management Report 2025 | C169: Exposure to green bonds | F169: 4253000000 | G169: 4479000000 | I169: Exposure to green bonds | L169: 3503000000 | M169: 5262000000
B170: VC (p. 542) | C170: Exposure to social bonds | F170: 1550000000 | G170: 1598000000 | I170: Exposure to social bonds | L170: 1081000000 | M170: 1071000000
B171: CAM (p. 545) | C171: Exposure to sustainable bonds | F171: 1027000000 | G171: 1188000000 | I171: Exposure to sustainable bonds | L171: 619000000 | M171: 445000000
C172: Exposure to sustainability-linked bonds | F172: 273000000 | G172: 283000000 | I172: Exposure to sustainability-linked bonds | L172: 396000000 | M172: 664000000
B175: Workiva | C175: Engagement | F175: 2024 | G175: 2025 | I175: Engagement | L175: 2024 | M175: 2025
B176: Consolidated Management Report 2025 | C176: Collective dialogues (number of dialogues) | F176: 6 | G176: 5 | I176: Collective dialogues (number of dialogues) | L176: 4 | M176: 3
B177: VC (p. 542) | C177: Dialogues with companies on ESG topics (number of dialogues) | F177: 185 | G177: 202 | I177: Dialogues on Environmental issues (number of dialogues) | L177: 60 | M177: 42
B178: CAM (p. 545) | C178: Dialogues with external managers on ESG issues (number of dialogues) | F178: 10 | G178: 10 | I178: ESG due diligence with external management companies and dialogues with third parties (number of processes and dialogues) | L178: 182 | M178: 191
C179: ESG due diligence with external managers (number of processes) | F179: 379 | G179: 344 | I179: Dialogues on social issues and international treaty violations (number of dialogues) | L179: 145 | M179: 134
C180: Investment in companies subject to engagement processes (%) | F180: 16 | G180: 17 | I180: ESG resolutions supported (%) | L180: 90.43 | M180: 90.16
C181: ESG issues addressed in dialogues with companies. (number of issues) | F181: 247 | G181: 268 | I181: Dialogues on governance issues and other dialogues with various themes (number of dialogues) | L181: 136 | M181: 131
B184: Workiva | C184: Proxy-voting (number of meetings) | F184: 2024 | G184: 2025 | I184: Proxy-voting (number of meetings) | L184: 2024 | M184: 2025
B185: Consolidated Management Report 2025 | C185: General meetings of shareholders voted during the year. | F185: 536 | G185: 534 | I185: General meetings of shareholders voted during the year. | L185: 1010 | M185: 1268
B186: VC (p. 542) | C186: Meetings where votes have been cast in favour of shareholder proposals. | F186: 141 | G186: 61 | I186: Meetings where votes have been cast in favour of shareholder proposals | L186: 194 | M186: 163
B187: CAM (p. 545) | C187: Meetings where board members have been voted against for reasons of ESG controversies or climate risk. | F187: 18 | G187: 26 | I187: Meetings where board members have been voted against for reasons of ESG controversies or climate risk | L187: 25 | M187: 28
C188: Meetings at which shareholder proposals on environmental and social issues have been voted in favour of | F188: 94 | G188: 58 | I188: Meetings at which shareholder proposals on environmental and social issues have been voted in favour of | L188: 96 | M188: 64
B192: Inversión responsable: Productos de terceros | C192: Third-party sustainable investment products (€) | F192: 2024 | G192: 2025
B193: DJBiC S&P questionnaire | C193: ESG Integration | F193: 3711177570 | G193: 4842004336
C194: Best in Class | F194: 1.36113155e+10 | G194: 1.689163621e+10
C195: Thematic | F195: 828123355.8 | G195: 671425961
C196: Impact investing | F196: 8315471.96 | G196: 5409110.37
C197: Other | F197: 250160952.2 | G197: 237842299.3
C198: Total investing Assets Under Custody (AUC) | F198: 1.857720542e+10 | G198: 2.28874705e+10
C199: Total sustainable investing Assets Under Custody (AUC) | F199: 1.840909285e+10 | G199: 2.264831792e+10
A210: Back to top

Sheet CROSS-CUTTING
B2: Summary of indicators T
B3: 30
B4: 30
C8: List of ESG Policies | D8: Source: Corporate website | Q8: Memberships and alliances | R8: Source: CaixaBank Group Consolidated Management Report | AH8: Sustainable Development Goals (SDGs) | AL8: Source: CaixaBank Group Consolidated Management Report
C10: Policy | E10: Responsible | G10: Approval | H10: Public | I10: Public | J10: Link | O10: pag. 550 | Q10: CROSS-CUTTING
C11: Principles of action in Corporate policy on sustainability/ESG risk management | E11: Board of Directors | G11: 2025-03-27 | H11: Yes | I11: Yes | J11: https://www.caixabank.com/deployedfiles/caixabank_com/Estaticos/PDFs/Sostenibilidad/Principles-ESG-Risks-Managing.pdf | AF11: pag.750 | AK11: SDGs
C12: Principles of Human Rights | E12: Board of Directors | G12: 2025-07-29 | H12: Yes | I12: Yes | J12: https://www.caixabank.com/deployedfiles/caixabank_com/Estaticos/PDFs/Sostenibilidad/Principles_of_Human_Rights_at_CaixaBank.pdf | AH12: COMMITMENT TO PEOPLE | AK12: 1, 2, 3, 4 y 10
C13: Inclusive policy for people with disabilities | E13: Board of Directors | G13: 2020-01-24 | H13: Yes | I13: Yes | J13: https://www.caixabank.com/deployedfiles/caixabank_com/Estaticos/PDFs/Personas/Inclusive_policy_for_people_with_disabilities_EN.pdf | AH13: COMMITMENT TO SOCIETY | AK13: 5, 8, 9 y 11
C14: Remuneration policy of the Board of Directors | E14: General Shareholders' Meeting | G14: 2026-02-19 | H14: Yes | I14: Yes | J14: https://www.caixabank.com/deployedfiles/caixabank_com/Estaticos/PDFs/Accionistasinversores/Gobierno_Corporativo/POLITICA_REMUNERACION_CONSEJO_2025-2028_JGA26_EN.pdf | AH14: COMMITMENT TO PLANET | AK14: 6, 7, 12, 13, 14, 15, 16, 17
C15: Occupational Health and Safety Policy | E15: Management Committee | G15: 2025-03-03 | H15: Yes | I15: Yes | J15: https://www.caixabank.com/deployedfiles/caixabank_com/Estaticos/PDFs/Personas/CaixaBank_Occupational_Health_and_Safety_Policy_EN.pdf
C16: Healthy Organisation Policy | E16: Management Committee | G16: 2023-04-24 | H16: Yes | I16: Yes | J16: https://www.caixabank.com/deployedfiles/caixabank_com/Estaticos/PDFs/Personas/CaixaBank-Healthy-Organisation-Policy.pdf
C17: Principles of action of the corporate information security policy | E17: Board of Directors | G17: 2025-09-25 | H17: Yes | I17: Yes | J17: https://www.caixabank.com/deployedfiles/caixabank_com/Estaticos/PDFs/Sostenibilidad/Principios_actuacion_politica_seguridad_informacion_ENG.pdf | AF17: Gemma | AH17: Double Materiality Assessment and SDGs
C18: General principles of the Corporate privacy and data protection policy | E18: Board of Directors | G18: 2026-01-29 | H18: Yes | I18: Yes | J18: https://www.caixabank.com/deployedfiles/caixabank_com/Estaticos/PDFs/Sostenibilidad/Politica_privacidad_CaixaBank_ENG.pdf | Q18: ENVIRONMENT AND CLIMATE
C19: Policy for selection, diversity and suitability assessment of the members of the Board of Directors and senior management members and other key function holders of CaixaBank and its Group | E19: Board of Directors | G19: 2025-06-26 | H19: Yes | I19: Yes | J19: https://www.caixabank.com/deployedfiles/caixabank_com/Estaticos/PDFs/Accionistasinversores/Gobierno_Corporativo/Politica_de_seleccion_EN.pdf | AH19: Priority and interlinked SDGs | AK19: Material sub-topics | AN19: Material topics | AQ19: Principles of the Global Compact
C20: CaixaBank's code of ethics | E20: Board of Directors | G20: 2025-01-29 | H20: Yes | I20: Yes | J20: https://www.caixabank.com/deployedfiles/caixabank_com/Estaticos/PDFs/Sostenibilidad/Codigo_Etico_ENG.pdf | AK20: Commitment with the territories | AN20: Affected groups | AQ20: 1,2,3,4,5,6,10
C21: General principles of the Corporate Risk Management Policy for Anti-Money Laundering and Counter Terrorist Financing and for management of Sanctions and International Financial Countermeasures | E21: Board of Directors | G21: 2026-02-19 | H21: Yes | I21: Yes | J21: https://www.caixabank.com/deployedfiles/caixabank/Estaticos/PDFs/Informacion_accionistas_inversores/GeneralprinciplesAMLandSantionsCorporatePolicyEN.pdf | AK21: Financial inclusion and education | AN21: Consumers and end users | AQ21: 1,2,4,5,6
C22: Corporate Anti-corruption policy | E22: Board of Directors | G22: 2024-12-19 | H22: Yes | I22: Yes | J22: https://www.caixabank.com/deployedfiles/caixabank_com/Estaticos/PDFs/Sostenibilidad/Principles_Corporate_Anti_Corruption_Policy_ENG.pdf | AK22: Quality employment and professional development | AN22: Own workforce | AQ22: 1,2,3,4,5,6
C23: Action principles of the corporate criminal | E23: Board of Directors | G23: 2025-12-18 | H23: Yes | I23: Yes | J23: https://www.caixabank.com/deployedfiles/caixabank/Estaticos/PDFs/Informacion_accionistas_inversores/Gobierno_corporativo/Politica_Penal_web_eng.pdf | AK23: Well-being, health and safety | AQ23: 1,2,3,4,5,6,10
C24: Principles of conduct of the Corporate conflicts of interest policy | E24: Board of Directors | G24: 2026-01-29 | H24: Yes | I24: Yes | J24: https://www.caixabank.com/deployedfiles/caixabank_com/Estaticos/PDFs/Accionistasinversores/Gobierno_Corporativo/ENG_PA_Politica_corporativa_conflictos_interes.pdf | AK24: Diversity, equity and inclusion | AQ24: 1,2,3,4,6
C25: General principles of the Corporate policy on tax risk management and tax performance | E25: Board of Directors | G25: 2025-04-29 | H25: Yes | I25: Yes | J25: https://www.caixabank.com/deployedfiles/caixabank_com/Estaticos/PDFs/Accionistasinversores/Gobierno_Corporativo/PG_Politica_riesgo_fiscal_actuacion_tributaria_eng.pdf | AK25: Value proposition, responsible marketing, and customer satisfaction | AN25: Consumers and end users | AQ25: 1,2,6
C26: Procurement principles | E26: Board of Directors | G26: 2025-07-29 | H26: Yes | I26: Yes | J26: https://www.caixabank.com/deployedfiles/caixabank/Estaticos/Principios_de_Compras_ENG.pdf | AK26: Privacy and data protection for consumers and end users | AQ26: 1,2,6
C27: Supplier Code of Conduct | E27: Board of Directors | G27: 2025-12-18 | H27: Yes | I27: Yes | J27: https://www.caixabank.com/deployedfiles/caixabank/Estaticos/Codigo_de_Conducta_Proveedor_ENG.pdf | AK27: Cybersecurity | AN27: Cybersecurity and Information security | AQ27: 1,2,6
Q28: GOVERNANCE | AK28: Climate change adaptation | AN28: Climate change | AQ28: 1,7,8,9
AK29: Carbon neutrality in operations and energy efficiency | AQ29: 7,8,9
AK30: Climate change mitigation | AQ30: 7,8,9
AK31: Ethics and integrity | AN31: Business conduct | AQ31: 1,2,3,4,5,6,7,8,9,10
Q32: SOCIAL | AK32: Prevention of corruption, money laundering and brivery | AQ32: 1,2,3,4,5,6,7,8,9,11
AK33: Management of relationships with suppliers including payment practices | AQ33: 1,2,3,4,5,6,7,8,9,12
AK34: Tax transparency | AQ34: 1,6,10
AK35: Products and services with ESG characteristics (sustainable mobilisation) | AN35: Sustainable finance | AQ35: 1,2,6,7,8,9
AK36: ESG Risks management | AQ36: 1,2,3,4,5,6,7,8,9,10
AK37: Responsible and transparent lobbying | AN37: Business conduct | AQ37: 1,2,3,4,5,6,7,8,9,10
AH40: Back to top
C42: ESG analysts and ratings | D42: Source: Corporate website | F42: ESG analysts and ratings | CaixaBank | L42: Last update 06-30-2026 | O42: IdGC | Q42: Double Materiality Matrix | R42: Source: CaixaBank Group Consolidated Management Report
O43: pag.248
C45: ESG analysts | D45: 2025 | E45: 2024 | F45: 2023 | G45: Scale | H45: Index
D46: 88 | E46: 86 | F46: 82 | G46: 0 (worst) - 100 (best) | H46: Dow Jones Best-in-Class Europe Index Dow Jones Best-in-Class World Index
D47: AAA | E47: AA | F47: A | G47: CCC-AAA | H47: MSCI ESG Leaders
D48: 9.5 | E48: 16.1 | G48: 0 (best) -100 (worst)
D49: B- | E49: C+ | F49: C+ | G49: D- (worst) a A+ (best)
D50: 1 | E50: 1 | F50: 1 | G50: (10-1)
D51: 69 | E51: 65 | F51: 66 | G51: 0 (worst) - 100 (best)
D52: A | E52: A | F52: A | G52: (D-/A)
O55: pag.229
B56: Workiva | C56: Engagement with Stakeholders | D56: Source: CaixaBank Group Consolidated Management Report | O56: Workiva | Q56: Sustainability Plan 2025 - 2027 | R56: Source: CaixaBank Group Consolidated Management Report
T57: Annual progress | U57: Semester progress
B58: (p.247) | C58: Group Stakeholder consultation (Double Materiality Analysis) | G58: 2024 | H58: 2025 | R58: Target | S58: KPI | T58: 2025 | U58: 2026 H1
C59: Surveys (number of surveys) | G59: 1045 | H59: 2409 | Q59: Advancing towards a more sustainable economy | R59: >€100,000 M mobilised in sustainable finance (cumulative 2025–27) - (CABK Group) | S59: > 100.000 | T59: 46.167 MM€ | U59: 34.928 MM€
C60: Interviews (number of interviews) | G60: 27 | H60: 28 | R60: 17 % of financial income generated by sustainable financing (CABK, ex BPI) | S60: 0.17 | T60: 0.17 | U60: 0.19
C61: Focus Group (sessions) | G61: 2 | H61: 4 | R61: Engage with 90 % of companies with credit exposure in sectors under the NZBA perimeter (every year) | S61: 0.9 | T61: 0.939 | U61: 0.3
R62: Meet the annual Net Zero targets aligned with 2030 pathways for 5 sectors and establish action plans in case of misalignment* | S62: 5 sectors | T62: 4 sectors | U62: -
C63: Results of the CaixaBank S.A. Engagement Study (Employee engagement) | G63: 2024 | H63: 2025 | Q63: Supporting the economic and social development of all people | R63: People with an inclusive solution promoted by CaixaBank (continuous monitoring indicator, no target) | S63: Continuous monitoring KPI | T63: 1829238 | U63: 1755665
B64: (p.377) | C64: Global participation (%) | G64: 83 | H64: 57 | R64: >150,000 jobs created with the support of CaixaBank. | S64: >150,000 | T64: 48216 | U64: 24673
C65: Climate and engagement: total favourability (%) | G65: 69 | H65: 73 | R65: 33 % of customers aged between 50 and 67 with long-term and savings products. | S65: 0.33 | T65: 0.31 | U65: 0.3
B66: (p.378) | C66: Plan Nosotros - We Plan (number of initiatives and improvement actions) | G66: 150 | H66: >50 | R66: Recognition as the best bank among publicly traded banks in Spain with a market capitalization exceeding 10,000 M€ for senior customers | S66: #1 | T66: #3 | U66: #3
C67: Supplier engagement (number of SMEs) | G67: 2024 | H67: 2025 | Q67: Our ambition is to be leaders in sustainability | R67: Recognition of the leading sustainability ratings among key European peers: To rank above the average of peers included in the Eurostoxx Banks index in at least 3 of the 5 selected ratings and, where this is not achieved, to maintain the rating as of the end of 2024 (MSCI, S&P, Sustainalytics, Fitch, and ISS) | S67: ≥3 | T67: 5 | U67: 5
B68: (p.500) | C68: SMEs taking part on the Sustainable Supplier Training Programme | G68: 85 | H68: 75 | R68: *Note: annual data as of 31.12.25
Q69: Back to top
B71: (p. 590, p.433) | C71: Shareholders and Investors engagement | G71: 2024 | H71: 2025
C72: Meetings with national and foreign institutional equity and fixed-income investors | D72: number of meetings | G72: 529 | H72: 486
D73: number of attendees | G73: 1237 | H73: 1188
C74: Meetings with specific investors on ESG topics | D74: number of meetings | G74: 26 | H74: 34
D75: number of attendees | G75: 44 | H75: 62
C76: Corporate meetings for shareholders | D76: number of meetings | G76: 12 | H76: 10
D77: number of attendees | G77: 2576 | H77: 2236
C78: New episodes of the AULA financial education podcast | D78: number of episodes | G78: 12 | H78: 12
D79: number of views | G79: 54932 | H79: 41338
C80: AULA Webinars. Online seminars | D80: number of seminars | G80: 11 | H80: 11
D81: number of views | G81: 7648 | H81: 7669
C82: Formación sobre ruedas chapters aired | D82: chapters aired | G82: 23 | H82: 25
D83: number of views | G83: 28346 | H83: 22182
C84: Programa AULA in-person courses | D84: number of courses | G84: 4 | H84: 4
D85: number of attendees | G85: 291 | H85: 411
D86: number of hours delivered | G86: 582 | H86: 822
C87: Contacts to the shareholder service (Telephone, email and video call) | D87: number of contacts | G87: 1935 | H87: 1866
C89: ESG Bonds | D89: Source: Corporate website
B91: Bonos Sociales | CaixaBank | C91: Social Bonds
C92: Date of issue | D92: ISIN | E92: Type | F92: Outstanding (M) | G92: First call date | H92: Expiry date | I92: Coupon
C93: 2025-11-14 | D93: XS3226502485 | E93: Tier 2 | F93: EUR 1,000 | G93: 14/11/2032 a 14/05/2033 | H93: 2038-05-14 | I93: 0.03875
C94: 2024-09-19 | D94: XS2902578249 | E94: SNP | F94: EUR 1,250 | G94: 2031-09-19 | H94: 2032-09-19 | I94: 0.03625
C95: 2023-05-16 | D95: XS2623501181 | E95: SNP | F95: EUR 1,000 | G95: 2026-05-16 | H95: 2027-05-16 | I95: 0.04625
C96: 2022-01-21 | D96: XS2434702424 | E96: SP | F96: EUR 1,000 | G96: 2027-01-21 | H96: 2028-01-21 | I96: 0.00625
C97: 2021-05-26 | D97: XS2346253730 | E97: SNP | F97: EUR 1,000 | G97: 2027-05-26 | H97: 2028-05-26 | I97: 0.0075
C98: 2019-09-26 | D98: XS2055758804 | E98: SNP | F98: EUR 1,000 | G98: n.a. | H98: 2024-10-01 | I98: 0.00625
B101: Bonos Verdes | CaixaBank | C101: Green Bonds
C102: Date of issue | D102: ISIN | E102: Type | F102: Outstanding (M) | G102: First call date | H102: Expiry date | I102: Coupon
C103: 2025-06-26 | D103: XS3103589670 | E103: SP | F103: EUR 1,000 | G103: n.a. | H103: 2035-06-26 | I103: 0.03375
C104: 2024-03-19 | D104: CH1325807886 | E104: SP | F104: CHF 300 | G104: 2029-03-19 | H104: 2030-03-19 | I104: 0.02175
C105: 2024-02-09 | D105: XS2764459363 | E105: SNP | F105: EUR 1,250 | G105: 2031-02-09 | H105: 2032-02-09 | I105: 0.04125
C106: 2022-11-14 | D106: XS2555187801 | E106: SNP | F106: EUR 1,000 | G106: 2029-11-14 | H106: 2030-11-14 | I106: 0.05375
C107: 2022-09-07 | D107: XS2530034649 | E107: SP | F107: EUR 1,000 | G107: n.a. | H107: 2029-09-07 | I107: 0.0375
C108: 2021-06-03 | D108: XS2348693297 | E108: SNP | F108: GBP 500 | G108: 2025-12-03 | H108: 2026-12-03 | I108: 0.015
C109: 2021-03-18 | D109: XS2310118976 | E109: Tier 2 | F109: EUR 1,000 | G109: 2026-06-18 | H109: 2031-06-18 | I109: 0.0125
C110: 2021-02-09 | D110: XS2297549391 | E110: SNP | F110: EUR 1,000 | G110: 2028-02-09 | H110: 2029-02-09 | I110: 0.005
A113: Back to top

Sheet UNEP FI - PRB
B5: Indicators summary T
B6: 0
B7: 0
C8: Responsible Banking Progress Statement | F8: Source: CaixaBank Group Consolidated Management Report
B10: Consolidated Management Report 2025
B11: (p. 741-743)
A59: Back to top
